{"text_format":"1","workbook":"xlsx","n_sheets":5,"sheets":["Accueil - PRBF","Calcul - PRBF - FPublique","Menus","Versions du fichier - PRBF","Log"],"not_rendered":{"charts":0,"images":4,"macros":1,"external_links":0,"defined_names":34,"comments":0,"pivot_tables":0},"unopened":[],"bounds":{"document_bytes":16777216,"sheet_cells":100000,"rows_first":2000,"rows_last":500,"rows_between":2000,"halvings":0,"cell_chars":16384,"cell_head_chars":4096},"cells_cut":0,"cells_raw":0,"read":"whole","date_system":"1900"}

{"sheet":"Accueil - PRBF","index":0,"n_rows":20,"n_cols":4,"rows_kept":20,"cut":false,"hidden":false,"merged":[[14,3,14,13],[16,3,17,13],[19,3,19,13]]}
[]
[]
[]
[]
[]
[]
[]
[]
[]
[]
[]
[]
[]
[]
[null,null,null,"Programme pour stimuler la récolte de la biomasse forestière primaire\nForêt publique\nAnnexe au rapport et au calcul\n2025-2026                                \n\n"]
[]
[null,null,null,"L'activation du contenu de ce fichier est requise afin d'assurer l'exécution des macro-commandes qui sont nécessaires\nà son bon fonctionnement."]
[]
[]
[null,null,null,"https://support.office.com/fr-fr/article/activer-ou-d%C3%A9sactiver-les-macros-dans-les-fichiers-office-12b036fd-d140-4e74-b45e-16fed1a7e5c6"]

{"sheet":"Calcul - PRBF - FPublique","index":1,"n_rows":52,"n_cols":9,"rows_kept":52,"cut":false,"hidden":true,"merged":[[18,7,18,8],[0,0,0,8],[1,0,1,8],[2,0,2,6],[2,7,2,8],[3,0,3,5],[3,6,3,8],[8,0,8,5],[9,0,9,5],[14,0,14,5],[4,0,4,8],[5,0,5,5],[6,0,6,5],[6,6,6,8],[7,0,7,5],[7,6,7,8],[5,6,5,8],[10,0,10,5],[11,0,11,5],[12,0,12,5],[13,0,13,5],[51,0,51,5],[51,6,51,8],[41,0,41,8],[42,0,42,8],[43,0,43,8],[44,0,44,8],[45,0,47,8],[48,0,48,8],[49,0,50,5],[49,6,50,8],[10,7,10,8],[30,0,30,8],[31,0,31,8],[32,0,32,8],[16,0,16,5],[26,0,26,5],[24,0,24,5],[25,0,25,5],[15,0,15,5],[17,0,17,5],[23,0,23,5],[19,0,19,5],[22,0,22,5],[18,0,18,5],[21,0,21,5],[20,0,20,5],[40,0,40,5],[40,6,40,8],[27,0,27,8],[28,0,28,5],[33,0,33,8],[29,0,29,8],[34,0,36,8],[37,0,37,8],[38,0,39,5],[38,6,39,8]]}
[]
["Programme pour stimuler la récolte de la biomasse forestière primaire\nForêt publique\nAnnexe au rapport et au calcul\n2025-2026              \n"]
[" *** Veuillez saisir les informations dans les cellules blanches (bénéficiaire) et jaunes (Ministère) ***",null,null,null,null,null,null,"Version 1 : 2025-10-15"]
["Contexte d'utilisation",null,null,null,null,null,"Inscrire une valeur"]
["Identification"]
["Unité d'aménagement"]
["Secteur d'intervention"]
["Numéro de la prescription"]
["Zone de tarification"]
["Inscrire les renseignements dans la colonne associée au contexte d'utilisation",null,null,null,null,null,"Planification","Bénéficiaire","Ministère"]
["Admissibilité et calcul de l'aide à la récupération des bois affectés sans preneur — Volet 1",null,null,null,null,null,null,{"$f":"Menus!B286","v":"8,36 + (0,27 x distance km aller - 20,288)"}]
["Usine de destination de la biomasse forestière primaire"]
["Est-ce que les bois sont issus de superficies affectées ou dégradées par une perturbation naturelle?"]
["Est-ce que la biomasse forestière primaire est transportée?"]
["Distance de transport de la biomasse en km aller"]
["Volume transporté en tonne métrique verte (TMV)"]
["Taux d'aide au transport - Usine de destination no1 ($/TMV)",null,null,null,null,null,{"$f":"IF(OR(ISBLANK($G$15),NOT(EXACT($G$13,Menus!$A$2)),NOT(EXACT($G$14,Menus!$A$2))),0,IFERROR(Menus!$B$283 + (MIN(MAX($G$15,Menus!$B$281),Menus!$B$282) * Menus!$B$284 - Menus!$B$285),0))","v":0},{"$f":"IFERROR(ROUND(IF(OR(ISBLANK($H$15),NOT(EXACT($H$13,Menus!$A$2)),NOT(EXACT($H$14,Menus!$A$2))),0,IF($H$15<=75,Menus!$B$280,Menus!$B$283 + (MIN(MAX($H$15,Menus!$B$281),Menus!$B$282) * Menus!$B$284 - Menus!$B$285))),2),0)","v":0},{"$f":"IFERROR(ROUND(IF(OR(ISBLANK($I$15),NOT(EXACT($I$13,Menus!$A$2)),NOT(EXACT($I$14,Menus!$A$2))),0,IF($I$15<=75,Menus!$B$280,Menus!$B$283 + (MIN(MAX($I$15,Menus!$B$281),Menus!$B$282) * Menus!$B$284 - Menus!$B$285))),2),0)","v":0}]
["Sous-total pour l'usine no1 ($)",null,null,null,null,null,{"$f":"IFERROR(ROUND($G$16*$G$17,2),0)","v":0},{"$f":"IFERROR(ROUND($H$16*$H$17,2),0)","v":0},{"$f":"IFERROR(ROUND($I$16*$I$17,2),0)","v":0}]
["Admissibilité et calcul de l'aide à la récupération de biomasse intégrée aux opérations de récolte — Volet 2",null,null,null,null,null,null,{"$f":"Menus!B293","v":"(16,01 x REC) + (0,249 x distance km aller - 18,716)"}]
["Usine de destination de la biomasse forestière primaire"]
["Est-ce que la récupération de la biomasse forestière primaire s’effectue simultanément avec les activités de récolte du bois marchand?"]
["Est-ce que la biomasse forestière primaire est transportée?"]
["Procédé de récolte (REC)"]
["Distance de transport de la biomasse en km aller"]
["Volume transporté en tonne métrique verte (TMV)"]
["Taux d'aide au transport - Usine de destination no2 ($/TMV)",null,null,null,null,null,{"$f":"IF(OR(ISBLANK($G$24),NOT(EXACT($G$21,Menus!$A$2)),NOT(EXACT($G$22,Menus!$A$2))),0,IFERROR((_xlfn.IFS($G$23=Menus!$A$295,Menus!$B$295*Menus!$B$290,$G$23=Menus!$A$296,Menus!$B$296*Menus!$B$290))+((MIN(MAX($G$24,Menus!$B$288),Menus!$B$289)*Menus!$B$291 - Menus!$B$292)),0))","v":0},{"$f":"IFERROR(ROUND(IF(OR(ISBLANK($H$24),NOT(EXACT($H$21,Menus!$A$2)),NOT(EXACT($H$22,Menus!$A$2))),0,IFERROR((_xlfn.IFS($H$23=Menus!$A$295,Menus!$B$295*Menus!$B$290,$H$23=Menus!$A$296,Menus!$B$296*Menus!$B$290))+((MIN(MAX($H$24,Menus!$B$288),Menus!$B$289)*Menus!$B$291 - Menus!$B$292)),0)),2),0)","v":0},{"$f":"IFERROR(ROUND(IF(OR(ISBLANK($I$24),NOT(EXACT($I$21,Menus!$A$2)),NOT(EXACT($I$22,Menus!$A$2))),0,IFERROR((_xlfn.IFS($I$23=Menus!$A$295,Menus!$B$295*Menus!$B$290,$I$23=Menus!$A$296,Menus!$B$296*Menus!$B$290))+((MIN(MAX($I$24,Menus!$B$288),Menus!$B$289)*Menus!$B$291 - Menus!$B$292)),0)),2),0)","v":0}]
["Sous-total pour l'usine no2 ($)",null,null,null,null,null,{"$f":"IFERROR(ROUND($G$25*$G$26,2),0)","v":0},{"$f":"IFERROR(ROUND($H$25*$H$26,2),0)","v":0},{"$f":"IFERROR(ROUND($I$25*$I$26,2),0)","v":0}]
["Résumé de l'aide offerte par le Programme pour stimuler la récolte de la biomasse forestière primaire"]
["Grand total admissible ($)",null,null,null,null,null,{"$f":"IFERROR(ROUND(SUM($G$18,$G$27),2),0)","v":0},{"$f":"IFERROR(ROUND(SUM($H$18,$H$27),2),0)","v":0},{"$f":"IFERROR(ROUND(SUM($I$18,$I$27),2),0)","v":0}]
[]
["Section réservée à l'usage du bénéficiaire"]
["Remarques"]
[]
["J'atteste que les renseignements fournis dans ce document pour le calcul de l'aide supplémentaire sont, à ma connaissance, complets et conformes à la vérité."]
[]
[]
[]
["Nom et prénom de l'ingénieur(e) forestier(-ière)"]
[null,null,null,null,null,null,{"$f":"TODAY()","v":"2025-10-15"}]
[]
["Signature de l'ingénieur(e) forestier(-ière) ",null,null,null,null,null,"Date (AAAA-MM-JJ)"]
["Section réservée à l'usage du Ministère"]
["Remarques"]
[]
["J'atteste que les renseignements fournis dans ce document pour le calcul de l'aide supplémentaire sont, à ma connaissance, complets et conformes à la vérité."]
[]
[]
[]
["Nom et prénom de l'ingénieur(e) forestier(-ière)"]
[null,null,null,null,null,null,{"$f":"TODAY()","v":"2025-10-15"}]
[]
["Signature de l'ingénieur(e) forestier(-ière) ",null,null,null,null,null,"Date (AAAA-MM-JJ)"]

{"sheet":"Menus","index":2,"n_rows":1170,"n_cols":15,"rows_kept":1170,"cut":false,"hidden":true,"merged":[]}
["Question"]
["Oui"]
["Non"]
["Sans objet"]
["Non admissible"]
[]
["UA (2023)"]
["01171"]
["01272"]
["02371"]
["02471"]
["02571"]
["02651"]
["02661"]
["02662"]
["02663"]
["02664"]
["02665"]
["02666"]
["02751"]
["03771"]
["03772"]
["04151"]
["04251"]
["04351"]
["04352"]
["05151"]
["06151"]
["06271"]
["06452"]
["06471"]
["07151"]
["07152"]
["07251"]
["07351"]
["07352"]
["07451"]
["08151"]
["08152"]
["08251"]
["08351"]
["08451"]
["08462"]
["08551"]
["08562"]
["08651"]
["08652"]
["08663"]
["08664"]
["08665"]
["08666"]
["08751"]
["08762"]
["08763"]
["08764"]
["09351"]
["09352"]
["09471"]
["09551"]
["09751"]
["11161"]
["11262"]
["11263"]
["12171"]
["096001"]
[]
["Zone de tarification"]
[151]
[152]
[153]
[154]
[155]
[156]
[157]
[158]
[180]
[181]
[182]
[183]
[184]
[185]
[186]
[187]
[190]
[191]
[192]
[193]
[194]
[195]
[200]
[240]
[241]
[242]
[243]
[244]
[245]
[246]
[247]
[248]
[249]
[251]
[252]
[253]
[254]
[255]
[256]
[257]
[258]
[259]
[260]
[261]
[262]
[263]
[264]
[265]
[267]
[268]
[269]
[270]
[271]
[272]
[273]
[274]
[275]
[276]
[277]
[278]
[279]
[280]
[281]
[282]
[283]
[284]
[285]
[286]
[287]
[288]
[289]
[290]
[291]
[292]
[299]
[349]
[351]
[352]
[353]
[354]
[355]
[356]
[357]
[448]
[449]
[451]
[452]
[453]
[454]
[455]
[456]
[457]
[458]
[459]
[460]
[461]
[549]
[648]
[649]
[651]
[652]
[653]
[654]
[656]
[657]
[658]
[659]
[660]
[661]
[662]
[750]
[751]
[752]
[753]
[754]
[755]
[756]
[757]
[758]
[850]
[851]
[852]
[853]
[854]
[855]
[856]
[857]
[858]
[859]
[860]
[861]
[862]
[863]
[864]
[865]
[866]
[867]
[868]
[869]
[870]
[871]
[872]
[873]
[874]
[875]
[876]
[877]
[878]
[879]
[880]
[881]
[882]
[883]
[884]
[885]
[886]
[887]
[888]
[889]
[890]
[891]
[892]
[931]
[932]
[933]
[934]
[935]
[951]
[952]
[953]
[954]
[955]
[956]
[957]
[960]
[961]
[962]
[963]
[964]
[965]
[966]
[967]
[970]
[980]
[984]
[985]
[986]
[987]
[990]
[995]
[998]
["Inscrire une valeur"]
[]
["Contexte - BGAD"]
["Planification"]
["BGAD"]
["Ministère"]
["Inscrire une valeur"]
[]
["Contexte - Usine de destination"]
["Planification"]
["Usine de destination"]
["Ministère"]
["Inscrire une valeur"]
[]
["Contexte - Forêt privée",null,"PFR "]
["Bénéficiaire"]
["Ministère"]
["Inscrire une valeur"]
[]
["PRBF"]
["Volet 1"]
["Minimum valeur",8.36]
["Minimum distance",74.849999999999994]
["Maximum distance",125]
["Constante 1",8.36]
["Constante 2",0.27100000000000002]
["Constante 3",20.288]
["Formule",{"$f":"TEXT(B283,\"0,00\") & \" + (\" & TEXT(B284,\"0,00\") & \" x distance km aller - \" & TEXT(B285,\"0,000\") & \")\"","v":"8,36 + (0,27 x distance km aller - 20,288)"}]
["Volet 2"]
["Minimum distance",75.150000000000006]
["Maximum distance",125]
["Constante 1",16.010000000000002]
["Constante 2",0.249]
["Constante 3",18.716000000000001]
["Formule",{"$f":"\"(\" & TEXT(B290,\"0,00\") & \" x REC) + (\" & TEXT(B291,\"0,000\") & \" x distance km aller - \" & TEXT(B292,\"0,000\") &\")\"","v":"(16,01 x REC) + (0,249 x distance km aller - 18,716)"}]
["REC"]
["Bois court",1]
["Bois long",0]
[]
[]
["BGAD",null,"BGAD PEEOL"]
["CCPL (Low)",null,"CCPL (Low)"]
["CCPL (Mont-Laurier)",null,"CCPL (Mont-Laurier)"]
["CCPL (Rapides-des-Joachims)",null,"CCPL (Rapides-des-Joachims)"]
["CCPL (Sainte-Thérèse)",null,"CCPL (Sainte-Thérèse)"]
["CCPL (Mansfield-et-Pontefract )",null,"CCPL (Mansfield-et-Pontefract )"]
["Forespect inc.",null,"Forespect inc."]
["Forex inc.",null,"Forex inc."]
["Groupe Crête (Mont-Blanc)",null,"Groupe Crête (Mont-Blanc)"]
["Groupe Crête (Ferme-Neuve)",null,"Groupe Crête (Ferme-Neuve)"]
["Lauzon - Planchers de bois exclusifs inc.",null,"Lauzon - Planchers de bois exclusifs inc."]
["Louisiana-Pacific (Bois­Franc)",null,"Domtar (Maniwaki)"]
["Domtar (Maniwaki)",null,"Produits forestiers Lachance inc."]
["Produits forestiers Lachance inc.",null,"Scierie Carrière ltée"]
["Scierie Carrière ltée"]
[]
["Zone de tarification et BGAD (RechercheV) - A BGAD (CP)","Zone","Numéro de l'usine","Nom de l'usine","Aide$/ha CP"]
[{"$f":"CONCATENATE(B316,\" - \",D316)","v":"648 - Louisiana-Pacific (Bois­Franc)"},648,"073-0-001","Louisiana-Pacific (Bois­Franc)",440,440,648,"073-0-001","Louisiana-Pacific Canada Ltd. (Bois-Franc) ",{"$f":"EXACT(G316,B316)","v":true},{"$f":"EXACT(H316,C316)","v":true},{"$f":"EXACT(I316,D316)","v":false},null,8,460]
["649 - Louisiana-Pacific (Bois­Franc)",649,"073-0-001","Louisiana-Pacific (Bois­Franc)",460,460,649,"073-0-001","Louisiana-Pacific Canada Ltd. (Bois-Franc) ",true,{"$f":"EXACT(H317,C317)","v":true},{"$f":"EXACT(I317,D317)","v":false},null,8,460]
["656 - Louisiana-Pacific (Bois­Franc)",656,"073-0-001","Louisiana-Pacific (Bois­Franc)",460,460,656,"073-0-001","Louisiana-Pacific Canada Ltd. (Bois-Franc) ",true,true,false,null,8,460]
["657 - Louisiana-Pacific (Bois­Franc)",657,"073-0-001","Louisiana-Pacific (Bois­Franc)",460,460,657,"073-0-001","Louisiana-Pacific Canada Ltd. (Bois-Franc) ",true,true,false,null,8,460]
["658 - Louisiana-Pacific (Bois­Franc)",658,"073-0-001","Louisiana-Pacific (Bois­Franc)",460,460,658,"073-0-001","Louisiana-Pacific Canada Ltd. (Bois-Franc) ",true,true,false,null,8,460]
["659 - Louisiana-Pacific (Bois­Franc)",659,"073-0-001","Louisiana-Pacific (Bois­Franc)",460,460,659,"073-0-001","Louisiana-Pacific Canada Ltd. (Bois-Franc) ",true,true,false,null,8,460]
["660 - Louisiana-Pacific (Bois­Franc)",660,"073-0-001","Louisiana-Pacific (Bois­Franc)",400,400,660,"073-0-001","Louisiana-Pacific Canada Ltd. (Bois-Franc) ",true,true,false,null,7,420]
["661 - Louisiana-Pacific (Bois­Franc)",661,"073-0-001","Louisiana-Pacific (Bois­Franc)",280,280,661,"073-0-001","Louisiana-Pacific Canada Ltd. (Bois-Franc) ",true,true,false,null,5,300]
["662 - Louisiana-Pacific (Bois­Franc)",662,"073-0-001","Louisiana-Pacific (Bois­Franc)",260,260,662,"073-0-001","Louisiana-Pacific Canada Ltd. (Bois-Franc) ",true,true,false,null,5,300]
["750 - Louisiana-Pacific (Bois­Franc)",750,"073-0-001","Louisiana-Pacific (Bois­Franc)",460,460,750,"073-0-001","Louisiana-Pacific Canada Ltd. (Bois-Franc) ",true,true,false,null,8,460]
["751 - Louisiana-Pacific (Bois­Franc)",751,"073-0-001","Louisiana-Pacific (Bois­Franc)",460,460,751,"073-0-001","Louisiana-Pacific Canada Ltd. (Bois-Franc) ",true,true,false,null,8,460]
["752 - Louisiana-Pacific (Bois­Franc)",752,"073-0-001","Louisiana-Pacific (Bois­Franc)",460,460,752,"073-0-001","Louisiana-Pacific Canada Ltd. (Bois-Franc) ",true,true,false,null,8,460]
["753 - Louisiana-Pacific (Bois­Franc)",753,"073-0-001","Louisiana-Pacific (Bois­Franc)",460,460,753,"073-0-001","Louisiana-Pacific Canada Ltd. (Bois-Franc) ",true,true,false,null,8,460]
["754 - Louisiana-Pacific (Bois­Franc)",754,"073-0-001","Louisiana-Pacific (Bois­Franc)",260,260,754,"073-0-001","Louisiana-Pacific Canada Ltd. (Bois-Franc) ",true,true,false,null,5,300]
["755 - Louisiana-Pacific (Bois­Franc)",755,"073-0-001","Louisiana-Pacific (Bois­Franc)",60,60,755,"073-0-001","Louisiana-Pacific Canada Ltd. (Bois-Franc) ",true,true,false,null,1,60]
["756 - Louisiana-Pacific (Bois­Franc)",756,"073-0-001","Louisiana-Pacific (Bois­Franc)",460,460,756,"073-0-001","Louisiana-Pacific Canada Ltd. (Bois-Franc) ",true,true,false,null,8,460]
["757 - Louisiana-Pacific (Bois­Franc)",757,"073-0-001","Louisiana-Pacific (Bois­Franc)",460,460,757,"073-0-001","Louisiana-Pacific Canada Ltd. (Bois-Franc) ",true,true,false,null,8,460]
["758 - Louisiana-Pacific (Bois­Franc)",758,"073-0-001","Louisiana-Pacific (Bois­Franc)",460,460,758,"073-0-001","Louisiana-Pacific Canada Ltd. (Bois-Franc) ",true,true,false,null,8,460]
["648 - Domtar (Maniwaki)",648,"073-0-001","Domtar (Maniwaki)",460,460,648,"073-1-010","Domtar (Maniwaki)",true,false,true,null,8,460]
["649 - Domtar (Maniwaki)",649,"073-0-002","Domtar (Maniwaki)",460,460,649,"073-1-010","PF Résolu Canada inc. (Maniwaki)",true,false,false,null,8,460]
["656 - Domtar (Maniwaki)",656,"073-0-003","Domtar (Maniwaki)",460,460,656,"073-1-010","PF Résolu Canada inc. (Maniwaki)",true,false,false,null,8,460]
["657 - Domtar (Maniwaki)",657,"073-0-004","Domtar (Maniwaki)",460,460,657,"073-1-010","PF Résolu Canada inc. (Maniwaki)",true,false,false,null,8,460]
["658 - Domtar (Maniwaki)",658,"073-0-005","Domtar (Maniwaki)",460,460,658,"073-1-010","PF Résolu Canada inc. (Maniwaki)",true,false,false,null,8,460]
["659 - Domtar (Maniwaki)",659,"073-0-006","Domtar (Maniwaki)",460,460,659,"073-1-010","PF Résolu Canada inc. (Maniwaki)",true,false,false,null,8,460]
["660 - Domtar (Maniwaki)",660,"073-0-007","Domtar (Maniwaki)",420,420,660,"073-1-010","PF Résolu Canada inc. (Maniwaki)",true,false,false,null,7,420]
["661 - Domtar (Maniwaki)",661,"073-0-008","Domtar (Maniwaki)",280,280,661,"073-1-010","PF Résolu Canada inc. (Maniwaki)",true,false,false,null,5,300]
["662 - Domtar (Maniwaki)",662,"073-0-009","Domtar (Maniwaki)",260,260,662,"073-1-010","PF Résolu Canada inc. (Maniwaki)",true,false,false,null,5,300]
["750 - Domtar (Maniwaki)",750,"073-0-010","Domtar (Maniwaki)",380,380,750,"073-1-010","PF Résolu Canada inc. (Maniwaki)",true,false,false,null,7,420]
["751 - Domtar (Maniwaki)",751,"073-0-011","Domtar (Maniwaki)",440,440,751,"073-1-010","PF Résolu Canada inc. (Maniwaki)",true,false,false,null,8,460]
["752 - Domtar (Maniwaki)",752,"073-0-012","Domtar (Maniwaki)",460,460,752,"073-1-010","PF Résolu Canada inc. (Maniwaki)",true,false,false,null,8,460]
["753 - Domtar (Maniwaki)",753,"073-0-013","Domtar (Maniwaki)",460,460,753,"073-1-010","PF Résolu Canada inc. (Maniwaki)",true,false,false,null,8,460]
["754 - Domtar (Maniwaki)",754,"073-0-014","Domtar (Maniwaki)",200,200,754,"073-1-010","PF Résolu Canada inc. (Maniwaki)",true,false,false,null,4,240]
["755 - Domtar (Maniwaki)",755,"073-0-015","Domtar (Maniwaki)",0,0,755,"073-1-010","PF Résolu Canada inc. (Maniwaki)",{"$f":"EXACT(G348,B348)","v":true},false,false,null,0,0]
["756 - Domtar (Maniwaki)",756,"073-0-016","Domtar (Maniwaki)",460,460,756,"073-1-010","PF Résolu Canada inc. (Maniwaki)",true,false,false,null,8,460]
["757 - Domtar (Maniwaki)",757,"073-0-017","Domtar (Maniwaki)",380,380,757,"073-1-010","PF Résolu Canada inc. (Maniwaki)",true,false,false,null,7,420]
["758 - Domtar (Maniwaki)",758,"073-0-018","Domtar (Maniwaki)",460,460,758,"073-1-010","PF Résolu Canada inc. (Maniwaki)",true,false,false,null,8,460]
["648 - CCPL (Rapides-des-Joachims)",648,"071-1-002","CCPL (Rapides-des-Joachims)",460,460,648,"071-1-002","La Compagnie Commonwealth Plywood ltée (Rapides-des-Joachims)",true,true,false,null,8,460]
["649 - CCPL (Rapides-des-Joachims)",649,"071-1-002","CCPL (Rapides-des-Joachims)",460,460,649,"071-1-002","La Compagnie Commonwealth Plywood ltée (Rapides-des-Joachims)",true,true,false,null,8,460]
["656 - CCPL (Rapides-des-Joachims)",656,"071-1-002","CCPL (Rapides-des-Joachims)",460,460,656,"071-1-002","La Compagnie Commonwealth Plywood ltée (Rapides-des-Joachims)",true,true,false,null,8,460]
["657 - CCPL (Rapides-des-Joachims)",657,"071-1-002","CCPL (Rapides-des-Joachims)",460,460,657,"071-1-002","La Compagnie Commonwealth Plywood ltée (Rapides-des-Joachims)",true,true,false,null,8,460]
["658 - CCPL (Rapides-des-Joachims)",658,"071-1-002","CCPL (Rapides-des-Joachims)",460,460,658,"071-1-002","La Compagnie Commonwealth Plywood ltée (Rapides-des-Joachims)",true,true,false,null,8,460]
["659 - CCPL (Rapides-des-Joachims)",659,"071-1-002","CCPL (Rapides-des-Joachims)",460,460,659,"071-1-002","La Compagnie Commonwealth Plywood ltée (Rapides-des-Joachims)",true,true,false,null,8,460]
["660 - CCPL (Rapides-des-Joachims)",660,"071-1-002","CCPL (Rapides-des-Joachims)",460,460,660,"071-1-002","La Compagnie Commonwealth Plywood ltée (Rapides-des-Joachims)",true,true,false,null,8,460]
["661 - CCPL (Rapides-des-Joachims)",661,"071-1-002","CCPL (Rapides-des-Joachims)",460,460,661,"071-1-002","La Compagnie Commonwealth Plywood ltée (Rapides-des-Joachims)",true,true,false,null,8,460]
["662 - CCPL (Rapides-des-Joachims)",662,"071-1-002","CCPL (Rapides-des-Joachims)",460,460,662,"071-1-002","La Compagnie Commonwealth Plywood ltée (Rapides-des-Joachims)",true,true,false,null,8,460]
["750 - CCPL (Rapides-des-Joachims)",750,"071-1-002","CCPL (Rapides-des-Joachims)",460,460,750,"071-1-002","La Compagnie Commonwealth Plywood ltée (Rapides-des-Joachims)",true,true,false,null,8,460]
["751 - CCPL (Rapides-des-Joachims)",751,"071-1-002","CCPL (Rapides-des-Joachims)",260,260,751,"071-1-002","La Compagnie Commonwealth Plywood ltée (Rapides-des-Joachims)",true,true,false,null,5,300]
["752 - CCPL (Rapides-des-Joachims)",752,"071-1-002","CCPL (Rapides-des-Joachims)",40,40,752,"071-1-002","La Compagnie Commonwealth Plywood ltée (Rapides-des-Joachims)",true,true,false,null,1,60]
["753 - CCPL (Rapides-des-Joachims)",753,"071-1-002","CCPL (Rapides-des-Joachims)",120,120,753,"071-1-002","La Compagnie Commonwealth Plywood ltée (Rapides-des-Joachims)",true,true,false,null,2,120]
["754 - CCPL (Rapides-des-Joachims)",754,"071-1-002","CCPL (Rapides-des-Joachims)",460,460,754,"071-1-002","La Compagnie Commonwealth Plywood ltée (Rapides-des-Joachims)",true,true,false,null,8,460]
["755 - CCPL (Rapides-des-Joachims)",755,"071-1-002","CCPL (Rapides-des-Joachims)",460,460,755,"071-1-002","La Compagnie Commonwealth Plywood ltée (Rapides-des-Joachims)",true,true,false,null,8,460]
["756 - CCPL (Rapides-des-Joachims)",756,"071-1-002","CCPL (Rapides-des-Joachims)",360,360,756,"071-1-002","La Compagnie Commonwealth Plywood ltée (Rapides-des-Joachims)",true,true,false,null,6,360]
["757 - CCPL (Rapides-des-Joachims)",757,"071-1-002","CCPL (Rapides-des-Joachims)",460,460,757,"071-1-002","La Compagnie Commonwealth Plywood ltée (Rapides-des-Joachims)",true,true,false,null,8,460]
["758 - CCPL (Rapides-des-Joachims)",758,"071-1-002","CCPL (Rapides-des-Joachims)",460,460,758,"071-1-002","La Compagnie Commonwealth Plywood ltée (Rapides-des-Joachims)",true,true,false,null,8,460]
["648 - CCPL (Low)",648,"072-1-001","CCPL (Low)",460,460,648,"072-1-001","La Compagnie Commonwealth Plywood ltée (Low)",true,true,false,null,8,460]
["649 - CCPL (Low)",649,"072-1-001","CCPL (Low)",460,460,649,"072-1-001","La Compagnie Commonwealth Plywood ltée (Low)",true,true,false,null,8,460]
["656 - CCPL (Low)",656,"072-1-001","CCPL (Low)",460,460,656,"072-1-001","La Compagnie Commonwealth Plywood ltée (Low)",true,true,false,null,8,460]
["657 - CCPL (Low)",657,"072-1-001","CCPL (Low)",460,460,657,"072-1-001","La Compagnie Commonwealth Plywood ltée (Low)",true,true,false,null,8,460]
["658 - CCPL (Low)",658,"072-1-001","CCPL (Low)",460,460,658,"072-1-001","La Compagnie Commonwealth Plywood ltée (Low)",true,true,false,null,8,460]
["659 - CCPL (Low)",659,"072-1-001","CCPL (Low)",460,460,659,"072-1-001","La Compagnie Commonwealth Plywood ltée (Low)",true,true,false,null,8,460]
["660 - CCPL (Low)",660,"072-1-001","CCPL (Low)",460,460,660,"072-1-001","La Compagnie Commonwealth Plywood ltée (Low)",true,true,false,null,8,460]
["661 - CCPL (Low)",661,"072-1-001","CCPL (Low)",460,460,661,"072-1-001","La Compagnie Commonwealth Plywood ltée (Low)",true,true,false,null,8,460]
["662 - CCPL (Low)",662,"072-1-001","CCPL (Low)",300,300,662,"072-1-001","La Compagnie Commonwealth Plywood ltée (Low)",true,true,false,null,5,300]
["750 - CCPL (Low)",750,"072-1-001","CCPL (Low)",60,60,750,"072-1-001","La Compagnie Commonwealth Plywood ltée (Low)",true,true,false,null,1,60]
[{"$f":"CONCATENATE(B380,\" - \",D380)","v":"751 - CCPL (Low)"},751,"072-1-001","CCPL (Low)",260,260,751,"072-1-001","La Compagnie Commonwealth Plywood ltée (Low)",{"$f":"EXACT(G380,B380)","v":true},true,false,null,5,300]
["752 - CCPL (Low)",752,"072-1-001","CCPL (Low)",460,460,752,"072-1-001","La Compagnie Commonwealth Plywood ltée (Low)",true,{"$f":"EXACT(H381,C381)","v":true},{"$f":"EXACT(I381,D381)","v":false},null,8,460]
["753 - CCPL (Low)",753,"072-1-001","CCPL (Low)",460,460,753,"072-1-001","La Compagnie Commonwealth Plywood ltée (Low)",true,true,false,null,8,460]
["754 - CCPL (Low)",754,"072-1-001","CCPL (Low)",360,360,754,"072-1-001","La Compagnie Commonwealth Plywood ltée (Low)",true,true,false,null,6,360]
["755 - CCPL (Low)",755,"072-1-001","CCPL (Low)",260,260,755,"072-1-001","La Compagnie Commonwealth Plywood ltée (Low)",true,true,false,null,5,300]
["756 - CCPL (Low)",756,"072-1-001","CCPL (Low)",460,460,756,"072-1-001","La Compagnie Commonwealth Plywood ltée (Low)",true,true,false,null,8,460]
["757 - CCPL (Low)",757,"072-1-001","CCPL (Low)",460,460,757,"072-1-001","La Compagnie Commonwealth Plywood ltée (Low)",true,true,false,null,8,460]
["758 - CCPL (Low)",758,"072-1-001","CCPL (Low)",460,460,758,"072-1-001","La Compagnie Commonwealth Plywood ltée (Low)",true,true,false,null,8,460]
["648 - CCPL (Mansfield-et-Pontefract )",648,null,"CCPL (Mansfield-et-Pontefract )",460,null,648,"072-1-005","Lauzon - Planchers de bois exclusifs inc. (Thurso)"]
["649 - CCPL (Mansfield-et-Pontefract )",649,null,"CCPL (Mansfield-et-Pontefract )",460,null,649,"072-1-005","Lauzon - Planchers de bois exclusifs inc. (Thurso)"]
["656 - CCPL (Mansfield-et-Pontefract )",656,null,"CCPL (Mansfield-et-Pontefract )",460,null,656,"072-1-005","Lauzon - Planchers de bois exclusifs inc. (Thurso)"]
["657 - CCPL (Mansfield-et-Pontefract )",657,null,"CCPL (Mansfield-et-Pontefract )",460,null,657,"072-1-005","Lauzon - Planchers de bois exclusifs inc. (Thurso)"]
["658 - CCPL (Mansfield-et-Pontefract )",658,null,"CCPL (Mansfield-et-Pontefract )",460,null,658,"072-1-005","Lauzon - Planchers de bois exclusifs inc. (Thurso)"]
["659 - CCPL (Mansfield-et-Pontefract )",659,null,"CCPL (Mansfield-et-Pontefract )",460,null,659,"072-1-005","Lauzon - Planchers de bois exclusifs inc. (Thurso)"]
["660 - CCPL (Mansfield-et-Pontefract )",660,null,"CCPL (Mansfield-et-Pontefract )",460,null,660,"072-1-005","Lauzon - Planchers de bois exclusifs inc. (Thurso)"]
["661 - CCPL (Mansfield-et-Pontefract )",661,null,"CCPL (Mansfield-et-Pontefract )",460,null,661,"072-1-005","Lauzon - Planchers de bois exclusifs inc. (Thurso)"]
["662 - CCPL (Mansfield-et-Pontefract )",662,null,"CCPL (Mansfield-et-Pontefract )",460,null,662,"072-1-005","Lauzon - Planchers de bois exclusifs inc. (Thurso)"]
["750 - CCPL (Mansfield-et-Pontefract )",750,null,"CCPL (Mansfield-et-Pontefract )",440,null,750,"072-1-005","Lauzon - Planchers de bois exclusifs inc. (Thurso)"]
["751 - CCPL (Mansfield-et-Pontefract )",751,null,"CCPL (Mansfield-et-Pontefract )",0,null,751,"072-1-005","Lauzon - Planchers de bois exclusifs inc. (Thurso)"]
["752 - CCPL (Mansfield-et-Pontefract )",752,null,"CCPL (Mansfield-et-Pontefract )",320,null,752,"072-1-005","Lauzon - Planchers de bois exclusifs inc. (Thurso)"]
["753 - CCPL (Mansfield-et-Pontefract )",753,null,"CCPL (Mansfield-et-Pontefract )",340,null,753,"072-1-005","Lauzon - Planchers de bois exclusifs inc. (Thurso)"]
["754 - CCPL (Mansfield-et-Pontefract )",754,null,"CCPL (Mansfield-et-Pontefract )",300,null,754,"072-1-005","Lauzon - Planchers de bois exclusifs inc. (Thurso)"]
["755 - CCPL (Mansfield-et-Pontefract )",755,null,"CCPL (Mansfield-et-Pontefract )",460,null,755,"072-1-005","Lauzon - Planchers de bois exclusifs inc. (Thurso)"]
["756 - CCPL (Mansfield-et-Pontefract )",756,null,"CCPL (Mansfield-et-Pontefract )",460,null,756,"072-1-005","Lauzon - Planchers de bois exclusifs inc. (Thurso)"]
["757 - CCPL (Mansfield-et-Pontefract )",757,null,"CCPL (Mansfield-et-Pontefract )",460,null,757,"072-1-005","Lauzon - Planchers de bois exclusifs inc. (Thurso)"]
["758 - CCPL (Mansfield-et-Pontefract )",758,null,"CCPL (Mansfield-et-Pontefract )",460,null,758,"072-1-005","Lauzon - Planchers de bois exclusifs inc. (Thurso)"]
["648 - Lauzon - Planchers de bois exclusifs inc.",648,"072-1-005","Lauzon - Planchers de bois exclusifs inc.",420,420,648,"072-1-012","Forespect inc.(Namur)",{"$f":"EXACT(G406,B406)","v":true},{"$f":"EXACT(H406,C406)","v":false},{"$f":"EXACT(I406,D406)","v":false},null,7,420]
["649 - Lauzon - Planchers de bois exclusifs inc.",649,"072-1-005","Lauzon - Planchers de bois exclusifs inc.",220,220,649,"072-1-012","Forespect inc.(Namur)",{"$f":"EXACT(G407,B407)","v":true},{"$f":"EXACT(H407,C407)","v":false},{"$f":"EXACT(I407,D407)","v":false},null,4,240]
["656 - Lauzon - Planchers de bois exclusifs inc.",656,"072-1-005","Lauzon - Planchers de bois exclusifs inc.",460,460,656,"072-1-012","Forespect inc.(Namur)",true,false,false,null,8,460]
["657 - Lauzon - Planchers de bois exclusifs inc.",657,"072-1-005","Lauzon - Planchers de bois exclusifs inc.",460,460,657,"072-1-012","Forespect inc.(Namur)",true,false,false,null,8,460]
["658 - Lauzon - Planchers de bois exclusifs inc.",658,"072-1-005","Lauzon - Planchers de bois exclusifs inc.",460,460,658,"072-1-012","Forespect inc.(Namur)",true,false,false,null,8,460]
["659 - Lauzon - Planchers de bois exclusifs inc.",659,"072-1-005","Lauzon - Planchers de bois exclusifs inc.",460,460,659,"072-1-012","Forespect inc.(Namur)",true,false,false,null,8,460]
["660 - Lauzon - Planchers de bois exclusifs inc.",660,"072-1-005","Lauzon - Planchers de bois exclusifs inc.",460,460,660,"072-1-012","Forespect inc.(Namur)",true,false,false,null,8,460]
["661 - Lauzon - Planchers de bois exclusifs inc.",661,"072-1-005","Lauzon - Planchers de bois exclusifs inc.",460,460,661,"072-1-012","Forespect inc.(Namur)",true,false,false,null,8,460]
["662 - Lauzon - Planchers de bois exclusifs inc.",662,"072-1-005","Lauzon - Planchers de bois exclusifs inc.",340,340,662,"072-1-012","Forespect inc.(Namur)",true,false,false,null,6,360]
["750 - Lauzon - Planchers de bois exclusifs inc.",750,"072-1-005","Lauzon - Planchers de bois exclusifs inc.",0,0,750,"072-1-012","Forespect inc.(Namur)",true,false,false,null,0,0]
["751 - Lauzon - Planchers de bois exclusifs inc.",751,"072-1-005","Lauzon - Planchers de bois exclusifs inc.",460,460,751,"072-1-012","Forespect inc.(Namur)",true,false,false,null,8,460]
["752 - Lauzon - Planchers de bois exclusifs inc.",752,"072-1-005","Lauzon - Planchers de bois exclusifs inc.",460,460,752,"072-1-012","Forespect inc.(Namur)",true,false,false,null,8,460]
["753 - Lauzon - Planchers de bois exclusifs inc.",753,"072-1-005","Lauzon - Planchers de bois exclusifs inc.",460,460,753,"072-1-012","Forespect inc.(Namur)",true,false,false,null,8,460]
["754 - Lauzon - Planchers de bois exclusifs inc.",754,"072-1-005","Lauzon - Planchers de bois exclusifs inc.",460,460,754,"072-1-012","Forespect inc.(Namur)",true,false,false,null,8,460]
["755 - Lauzon - Planchers de bois exclusifs inc.",755,"072-1-005","Lauzon - Planchers de bois exclusifs inc.",460,460,755,"072-1-012","Forespect inc.(Namur)",true,false,false,null,8,460]
["756 - Lauzon - Planchers de bois exclusifs inc.",756,"072-1-005","Lauzon - Planchers de bois exclusifs inc.",460,460,756,"072-1-012","Forespect inc.(Namur)",true,false,false,null,8,460]
["757 - Lauzon - Planchers de bois exclusifs inc.",757,"072-1-005","Lauzon - Planchers de bois exclusifs inc.",460,460,757,"072-1-012","Forespect inc.(Namur)",true,false,false,null,8,460]
["758 - Lauzon - Planchers de bois exclusifs inc.",758,"072-1-005","Lauzon - Planchers de bois exclusifs inc.",460,460,758,"072-1-012","Forespect inc.(Namur)",true,false,false,null,8,460]
["648 - Forespect inc.",648,"072-1-012","Forespect inc.",240,240,648,"142-1-005","Produits forestiers Lachance inc. (Sainte-Émélie-de-l'Énergie)",true,false,false,null,4,240]
["649 - Forespect inc.",649,"072-1-012","Forespect inc.",120,120,649,"142-1-005","Produits forestiers Lachance inc. (Sainte-Émélie-de-l'Énergie)",true,false,false,null,2,120]
["656 - Forespect inc.",656,"072-1-012","Forespect inc.",420,420,656,"142-1-005","Produits forestiers Lachance inc. (Sainte-Émélie-de-l'Énergie)",true,false,false,null,7,420]
["657 - Forespect inc.",657,"072-1-012","Forespect inc.",460,460,657,"142-1-005","Produits forestiers Lachance inc. (Sainte-Émélie-de-l'Énergie)",true,false,false,null,8,460]
["658 - Forespect inc.",658,"072-1-012","Forespect inc.",460,460,658,"142-1-005","Produits forestiers Lachance inc. (Sainte-Émélie-de-l'Énergie)",true,false,false,null,8,460]
["659 - Forespect inc.",659,"072-1-012","Forespect inc.",460,460,659,"142-1-005","Produits forestiers Lachance inc. (Sainte-Émélie-de-l'Énergie)",true,false,false,null,8,460]
["660 - Forespect inc.",660,"072-1-012","Forespect inc.",460,460,660,"142-1-005","Produits forestiers Lachance inc. (Sainte-Émélie-de-l'Énergie)",true,false,false,null,8,460]
["661 - Forespect inc.",661,"072-1-012","Forespect inc.",380,380,661,"142-1-005","Produits forestiers Lachance inc. (Sainte-Émélie-de-l'Énergie)",true,false,false,null,7,420]
["662 - Forespect inc.",662,"072-1-012","Forespect inc.",200,200,662,"142-1-005","Produits forestiers Lachance inc. (Sainte-Émélie-de-l'Énergie)",true,false,false,null,4,240]
["750 - Forespect inc.",750,"072-1-012","Forespect inc.",260,260,750,"142-1-005","Produits forestiers Lachance inc. (Sainte-Émélie-de-l'Énergie)",true,false,false,null,5,300]
["751 - Forespect inc.",751,"072-1-012","Forespect inc.",460,460,751,"142-1-005","Produits forestiers Lachance inc. (Sainte-Émélie-de-l'Énergie)",true,false,false,null,8,460]
["752 - Forespect inc.",752,"072-1-012","Forespect inc.",460,460,752,"142-1-005","Produits forestiers Lachance inc. (Sainte-Émélie-de-l'Énergie)",true,false,false,null,8,460]
["753 - Forespect inc.",753,"072-1-012","Forespect inc.",460,460,753,"142-1-005","Produits forestiers Lachance inc. (Sainte-Émélie-de-l'Énergie)",true,false,false,null,8,460]
["754 - Forespect inc.",754,"072-1-012","Forespect inc.",460,460,754,"142-1-005","Produits forestiers Lachance inc. (Sainte-Émélie-de-l'Énergie)",true,false,false,null,8,460]
["755 - Forespect inc.",755,"072-1-012","Forespect inc.",460,460,755,"142-1-005","Produits forestiers Lachance inc. (Sainte-Émélie-de-l'Énergie)",true,false,false,null,8,460]
["756 - Forespect inc.",756,"072-1-012","Forespect inc.",460,460,756,"142-1-005","Produits forestiers Lachance inc. (Sainte-Émélie-de-l'Énergie)",{"$f":"EXACT(G439,B439)","v":true},false,false,null,8,460]
["757 - Forespect inc.",757,"072-1-012","Forespect inc.",460,460,757,"142-1-005","Produits forestiers Lachance inc. (Sainte-Émélie-de-l'Énergie)",true,false,false,null,8,460]
["758 - Forespect inc.",758,"072-1-012","Forespect inc.",460,460,758,"142-1-005","Produits forestiers Lachance inc. (Sainte-Émélie-de-l'Énergie)",true,false,false,null,8,460]
["648 - Produits forestiers Lachance inc.",648,"142-1-005","Produits forestiers Lachance inc.",460,460,648,"151-1-019","Crête (Mont-Blanc)",true,false,false,null,8,460]
["649 - Produits forestiers Lachance inc.",649,"142-1-005","Produits forestiers Lachance inc.",140,140,649,"151-1-019","Crête (Mont-Blanc)",true,false,false,null,3,180]
[{"$f":"CONCATENATE(B444,\" - \",D444)","v":"656 - Produits forestiers Lachance inc."},656,"142-1-005","Produits forestiers Lachance inc.",340,340,656,"151-1-019","Crête (Mont-Blanc)",true,false,false,null,6,360]
["657 - Produits forestiers Lachance inc.",657,"142-1-005","Produits forestiers Lachance inc.",460,460,657,"151-1-019","Crête (Mont-Blanc)",true,false,false,null,8,460]
["658 - Produits forestiers Lachance inc.",658,"142-1-005","Produits forestiers Lachance inc.",460,460,658,"151-1-019","Crête (Mont-Blanc)",true,false,false,null,8,460]
["659 - Produits forestiers Lachance inc.",659,"142-1-005","Produits forestiers Lachance inc.",460,460,659,"151-1-019","Crête (Mont-Blanc)",true,false,false,null,8,460]
["660 - Produits forestiers Lachance inc.",660,"142-1-005","Produits forestiers Lachance inc.",460,460,660,"151-1-019","Crête (Mont-Blanc)",true,false,false,null,8,460]
["661 - Produits forestiers Lachance inc.",661,"142-1-005","Produits forestiers Lachance inc.",460,460,661,"151-1-019","Crête (Mont-Blanc)",true,false,false,null,8,460]
["662 - Produits forestiers Lachance inc.",662,"142-1-005","Produits forestiers Lachance inc.",460,460,662,"151-1-019","Crête (Mont-Blanc)",true,false,false,null,8,460]
["750 - Produits forestiers Lachance inc.",750,"142-1-005","Produits forestiers Lachance inc.",460,460,750,"151-1-019","Crête (Mont-Blanc)",true,false,false,null,8,460]
["751 - Produits forestiers Lachance inc.",751,"142-1-005","Produits forestiers Lachance inc.",460,460,751,"151-1-019","Crête (Mont-Blanc)",true,false,false,null,8,460]
["752 - Produits forestiers Lachance inc.",752,"142-1-005","Produits forestiers Lachance inc.",460,460,752,"151-1-019","Crête (Mont-Blanc)",true,false,false,null,8,460]
["753 - Produits forestiers Lachance inc.",753,"142-1-005","Produits forestiers Lachance inc.",460,460,753,"151-1-019","Crête (Mont-Blanc)",true,false,false,null,8,460]
["754 - Produits forestiers Lachance inc.",754,"142-1-005","Produits forestiers Lachance inc.",460,460,754,"151-1-019","Crête (Mont-Blanc)",true,false,false,null,8,460]
["755 - Produits forestiers Lachance inc.",755,"142-1-005","Produits forestiers Lachance inc.",460,460,755,"151-1-019","Crête (Mont-Blanc)",true,false,false,null,8,460]
["756 - Produits forestiers Lachance inc.",756,"142-1-005","Produits forestiers Lachance inc.",460,460,756,"151-1-019","Crête (Mont-Blanc)",true,false,false,null,8,460]
["757 - Produits forestiers Lachance inc.",757,"142-1-005","Produits forestiers Lachance inc.",460,460,757,"151-1-019","Crête (Mont-Blanc)",true,false,false,null,8,460]
["758 - Produits forestiers Lachance inc.",758,"142-1-005","Produits forestiers Lachance inc.",460,460,758,"151-1-019","Crête (Mont-Blanc)",true,false,false,null,8,460]
["648 - Groupe Crête (Mont-Blanc)",648,"151-1-019","Groupe Crête (Mont-Blanc)",180,180,648,"151-1-020","Scierie Carrière ltée (Lachute)",true,false,false,null,3,180]
["649 - Groupe Crête (Mont-Blanc)",649,"151-1-019","Groupe Crête (Mont-Blanc)",40,40,649,"151-1-020","Scierie Carrière ltée (Lachute)",true,false,false,null,1,60]
["656 - Groupe Crête (Mont-Blanc)",656,"151-1-019","Groupe Crête (Mont-Blanc)",320,320,656,"151-1-020","Scierie Carrière ltée (Lachute)",true,false,false,null,6,360]
["657 - Groupe Crête (Mont-Blanc)",657,"151-1-019","Groupe Crête (Mont-Blanc)",380,380,657,"151-1-020","Scierie Carrière ltée (Lachute)",true,false,false,null,7,420]
["658 - Groupe Crête (Mont-Blanc)",658,"151-1-019","Groupe Crête (Mont-Blanc)",460,460,658,"151-1-020","Scierie Carrière ltée (Lachute)",true,false,false,null,8,460]
["659 - Groupe Crête (Mont-Blanc)",659,"151-1-019","Groupe Crête (Mont-Blanc)",460,460,659,"151-1-020","Scierie Carrière ltée (Lachute)",true,false,false,null,8,460]
["660 - Groupe Crête (Mont-Blanc)",660,"151-1-019","Groupe Crête (Mont-Blanc)",460,460,660,"151-1-020","Scierie Carrière ltée (Lachute)",true,false,false,null,8,460]
["661 - Groupe Crête (Mont-Blanc)",661,"151-1-019","Groupe Crête (Mont-Blanc)",280,280,661,"151-1-020","Scierie Carrière ltée (Lachute)",true,false,false,null,5,300]
["662 - Groupe Crête (Mont-Blanc)",662,"151-1-019","Groupe Crête (Mont-Blanc)",340,340,662,"151-1-020","Scierie Carrière ltée (Lachute)",true,false,false,null,6,360]
["750 - Groupe Crête (Mont-Blanc)",750,"151-1-019","Groupe Crête (Mont-Blanc)",460,460,750,"151-1-020","Scierie Carrière ltée (Lachute)",true,false,false,null,8,460]
["751 - Groupe Crête (Mont-Blanc)",751,"151-1-019","Groupe Crête (Mont-Blanc)",460,460,751,"151-1-020","Scierie Carrière ltée (Lachute)",true,false,false,null,8,460]
["752 - Groupe Crête (Mont-Blanc)",752,"151-1-019","Groupe Crête (Mont-Blanc)",460,460,752,"151-1-020","Scierie Carrière ltée (Lachute)",{"$f":"EXACT(G471,B471)","v":true},{"$f":"EXACT(H471,C471)","v":false},{"$f":"EXACT(I471,D471)","v":false},null,8,460]
["753 - Groupe Crête (Mont-Blanc)",753,"151-1-019","Groupe Crête (Mont-Blanc)",460,460,753,"151-1-020","Scierie Carrière ltée (Lachute)",true,false,false,null,8,460]
["754 - Groupe Crête (Mont-Blanc)",754,"151-1-019","Groupe Crête (Mont-Blanc)",460,460,754,"151-1-020","Scierie Carrière ltée (Lachute)",true,false,false,null,8,460]
["755 - Groupe Crête (Mont-Blanc)",755,"151-1-019","Groupe Crête (Mont-Blanc)",460,460,755,"151-1-020","Scierie Carrière ltée (Lachute)",true,false,false,null,8,460]
["756 - Groupe Crête (Mont-Blanc)",756,"151-1-019","Groupe Crête (Mont-Blanc)",460,460,756,"151-1-020","Scierie Carrière ltée (Lachute)",true,false,false,null,8,460]
["757 - Groupe Crête (Mont-Blanc)",757,"151-1-019","Groupe Crête (Mont-Blanc)",460,460,757,"151-1-020","Scierie Carrière ltée (Lachute)",true,false,false,null,8,460]
["758 - Groupe Crête (Mont-Blanc)",758,"151-1-019","Groupe Crête (Mont-Blanc)",460,460,758,"151-1-020","Scierie Carrière ltée (Lachute)",true,false,false,null,8,460]
["648 - Groupe Crête (Ferme-Neuve)","648","154-1-007","Groupe Crête (Ferme-Neuve)",260,null,648,"152-2-004","La Compagnie Commonwealth Plywood ltée (Sainte-Thérèse)"]
["649 - Groupe Crête (Ferme-Neuve)","649","154-1-007","Groupe Crête (Ferme-Neuve)",460,null,649,"152-2-004","La Compagnie Commonwealth Plywood ltée (Sainte-Thérèse)"]
["656 - Groupe Crête (Ferme-Neuve)","656","154-1-007","Groupe Crête (Ferme-Neuve)",380,null,656,"152-2-004","La Compagnie Commonwealth Plywood ltée (Sainte-Thérèse)"]
["657 - Groupe Crête (Ferme-Neuve)","657","154-1-007","Groupe Crête (Ferme-Neuve)",200,null,657,"152-2-004","La Compagnie Commonwealth Plywood ltée (Sainte-Thérèse)"]
["658 - Groupe Crête (Ferme-Neuve)","658","154-1-007","Groupe Crête (Ferme-Neuve)",380,null,658,"152-2-004","La Compagnie Commonwealth Plywood ltée (Sainte-Thérèse)"]
["659 - Groupe Crête (Ferme-Neuve)","659","154-1-007","Groupe Crête (Ferme-Neuve)",460,null,659,"152-2-004","La Compagnie Commonwealth Plywood ltée (Sainte-Thérèse)"]
["660 - Groupe Crête (Ferme-Neuve)","660","154-1-007","Groupe Crête (Ferme-Neuve)",80,null,660,"152-2-004","La Compagnie Commonwealth Plywood ltée (Sainte-Thérèse)"]
["661 - Groupe Crête (Ferme-Neuve)","661","154-1-007","Groupe Crête (Ferme-Neuve)",0,null,661,"152-2-004","La Compagnie Commonwealth Plywood ltée (Sainte-Thérèse)"]
["662 - Groupe Crête (Ferme-Neuve)","662","154-1-007","Groupe Crête (Ferme-Neuve)",60,null,662,"152-2-004","La Compagnie Commonwealth Plywood ltée (Sainte-Thérèse)"]
["750 - Groupe Crête (Ferme-Neuve)","750","154-1-007","Groupe Crête (Ferme-Neuve)",440,null,750,"152-2-004","La Compagnie Commonwealth Plywood ltée (Sainte-Thérèse)"]
["751 - Groupe Crête (Ferme-Neuve)","751","154-1-007","Groupe Crête (Ferme-Neuve)",460,null,751,"152-2-004","La Compagnie Commonwealth Plywood ltée (Sainte-Thérèse)"]
["752 - Groupe Crête (Ferme-Neuve)","752","154-1-007","Groupe Crête (Ferme-Neuve)",460,null,752,"152-2-004","La Compagnie Commonwealth Plywood ltée (Sainte-Thérèse)"]
["753 - Groupe Crête (Ferme-Neuve)","753","154-1-007","Groupe Crête (Ferme-Neuve)",460,null,753,"152-2-004","La Compagnie Commonwealth Plywood ltée (Sainte-Thérèse)"]
["754 - Groupe Crête (Ferme-Neuve)","754","154-1-007","Groupe Crête (Ferme-Neuve)",460,null,754,"152-2-004","La Compagnie Commonwealth Plywood ltée (Sainte-Thérèse)"]
["755 - Groupe Crête (Ferme-Neuve)","755","154-1-007","Groupe Crête (Ferme-Neuve)",240,null,755,"152-2-004","La Compagnie Commonwealth Plywood ltée (Sainte-Thérèse)"]
["756 - Groupe Crête (Ferme-Neuve)","756","154-1-007","Groupe Crête (Ferme-Neuve)",460,null,756,"152-2-004","La Compagnie Commonwealth Plywood ltée (Sainte-Thérèse)"]
["757 - Groupe Crête (Ferme-Neuve)","757","154-1-007","Groupe Crête (Ferme-Neuve)",460,null,757,"152-2-004","La Compagnie Commonwealth Plywood ltée (Sainte-Thérèse)"]
["758 - Groupe Crête (Ferme-Neuve)","758","154-1-007","Groupe Crête (Ferme-Neuve)",460,null,758,"152-2-004","La Compagnie Commonwealth Plywood ltée (Sainte-Thérèse)"]
["648 - Scierie Carrière ltée",648,"151-1-020","Scierie Carrière ltée",340,340,648,"154-1-006","La Compagnie Commonwealth Plywood ltée (Mont-Laurier)",{"$f":"EXACT(G496,B496)","v":true},{"$f":"EXACT(H496,C496)","v":false},{"$f":"EXACT(I496,D496)","v":false},null,6,360]
["649 - Scierie Carrière ltée",649,"151-1-020","Scierie Carrière ltée",20,20,649,"154-1-006","La Compagnie Commonwealth Plywood ltée (Mont-Laurier)",{"$f":"EXACT(G497,B497)","v":true},{"$f":"EXACT(H497,C497)","v":false},{"$f":"EXACT(I497,D497)","v":false},null,1,60]
["656 - Scierie Carrière ltée",656,"151-1-020","Scierie Carrière ltée",460,460,656,"154-1-006","La Compagnie Commonwealth Plywood ltée (Mont-Laurier)",true,false,false,null,8,460]
["657 - Scierie Carrière ltée",657,"151-1-020","Scierie Carrière ltée",460,460,657,"154-1-006","La Compagnie Commonwealth Plywood ltée (Mont-Laurier)",true,false,false,null,8,460]
["658 - Scierie Carrière ltée",658,"151-1-020","Scierie Carrière ltée",460,460,658,"154-1-006","La Compagnie Commonwealth Plywood ltée (Mont-Laurier)",true,false,false,null,8,460]
["659 - Scierie Carrière ltée",659,"151-1-020","Scierie Carrière ltée",460,460,659,"154-1-006","La Compagnie Commonwealth Plywood ltée (Mont-Laurier)",true,false,false,null,8,460]
["660 - Scierie Carrière ltée",660,"151-1-020","Scierie Carrière ltée",460,460,660,"154-1-006","La Compagnie Commonwealth Plywood ltée (Mont-Laurier)",true,false,false,null,8,460]
["661 - Scierie Carrière ltée",661,"151-1-020","Scierie Carrière ltée",460,460,661,"154-1-006","La Compagnie Commonwealth Plywood ltée (Mont-Laurier)",true,false,false,null,8,460]
["662 - Scierie Carrière ltée",662,"151-1-020","Scierie Carrière ltée",460,460,662,"154-1-006","La Compagnie Commonwealth Plywood ltée (Mont-Laurier)",true,false,false,null,8,460]
["750 - Scierie Carrière ltée",750,"151-1-020","Scierie Carrière ltée",300,300,750,"154-1-006","La Compagnie Commonwealth Plywood ltée (Mont-Laurier)",true,false,false,null,5,300]
["751 - Scierie Carrière ltée",751,"151-1-020","Scierie Carrière ltée",460,460,751,"154-1-006","La Compagnie Commonwealth Plywood ltée (Mont-Laurier)",true,false,false,null,8,460]
["752 - Scierie Carrière ltée",752,"151-1-020","Scierie Carrière ltée",460,460,752,"154-1-006","La Compagnie Commonwealth Plywood ltée (Mont-Laurier)",true,false,false,null,8,460]
[{"$f":"CONCATENATE(B508,\" - \",D508)","v":"753 - Scierie Carrière ltée"},753,"151-1-020","Scierie Carrière ltée",460,460,753,"154-1-006","La Compagnie Commonwealth Plywood ltée (Mont-Laurier)",true,false,false,null,8,460]
["754 - Scierie Carrière ltée",754,"151-1-020","Scierie Carrière ltée",460,460,754,"154-1-006","La Compagnie Commonwealth Plywood ltée (Mont-Laurier)",true,false,false,null,8,460]
["755 - Scierie Carrière ltée",755,"151-1-020","Scierie Carrière ltée",460,460,755,"154-1-006","La Compagnie Commonwealth Plywood ltée (Mont-Laurier)",true,false,false,null,8,460]
["756 - Scierie Carrière ltée",756,"151-1-020","Scierie Carrière ltée",460,460,756,"154-1-006","La Compagnie Commonwealth Plywood ltée (Mont-Laurier)",true,false,false,null,8,460]
["757 - Scierie Carrière ltée",757,"151-1-020","Scierie Carrière ltée",460,460,757,"154-1-006","La Compagnie Commonwealth Plywood ltée (Mont-Laurier)",true,false,false,null,8,460]
["758 - Scierie Carrière ltée",758,"151-1-020","Scierie Carrière ltée",460,460,758,"154-1-006","La Compagnie Commonwealth Plywood ltée (Mont-Laurier)",true,false,false,null,8,460]
["648 - CCPL (Sainte-Thérèse)",648,"152-2-004","CCPL (Sainte-Thérèse)",440,440,648,"154-1-007","Forex inc. (Mont-Laurier)",true,false,false,null,8,460]
["649 - CCPL (Sainte-Thérèse)",649,"152-2-005","CCPL (Sainte-Thérèse)",40,40,649,"154-1-007","Forex inc. (Mont-Laurier)",true,false,false,null,1,60]
["656 - CCPL (Sainte-Thérèse)",656,"152-2-006","CCPL (Sainte-Thérèse)",460,460,656,"154-1-007","Forex inc. (Mont-Laurier)",true,false,false,null,8,460]
["657 - CCPL (Sainte-Thérèse)",657,"152-2-007","CCPL (Sainte-Thérèse)",460,460,657,"154-1-007","Forex inc. (Mont-Laurier)",true,false,false,null,8,460]
["658 - CCPL (Sainte-Thérèse)",658,"152-2-008","CCPL (Sainte-Thérèse)",460,460,658,"154-1-007","Forex inc. (Mont-Laurier)",true,false,false,null,8,460]
["659 - CCPL (Sainte-Thérèse)",659,"152-2-009","CCPL (Sainte-Thérèse)",460,460,659,"154-1-007","Forex inc. (Mont-Laurier)",true,false,false,null,8,460]
["660 - CCPL (Sainte-Thérèse)",660,"152-2-010","CCPL (Sainte-Thérèse)",460,460,660,"154-1-007","Forex inc. (Mont-Laurier)",true,false,false,null,8,460]
["661 - CCPL (Sainte-Thérèse)",661,"152-2-011","CCPL (Sainte-Thérèse)",460,460,661,"154-1-007","Forex inc. (Mont-Laurier)",true,false,false,null,8,460]
["662 - CCPL (Sainte-Thérèse)",662,"152-2-012","CCPL (Sainte-Thérèse)",460,460,662,"154-1-007","Forex inc. (Mont-Laurier)",true,false,false,null,8,460]
["750 - CCPL (Sainte-Thérèse)",750,"152-2-013","CCPL (Sainte-Thérèse)",460,460,750,"154-1-007","Forex inc. (Mont-Laurier)",true,false,false,null,8,460]
["751 - CCPL (Sainte-Thérèse)",751,"152-2-014","CCPL (Sainte-Thérèse)",460,460,751,"154-1-007","Forex inc. (Mont-Laurier)",true,false,false,null,8,460]
["752 - CCPL (Sainte-Thérèse)",752,"152-2-015","CCPL (Sainte-Thérèse)",460,460,752,"154-1-007","Forex inc. (Mont-Laurier)",true,false,false,null,8,460]
["753 - CCPL (Sainte-Thérèse)",753,"152-2-016","CCPL (Sainte-Thérèse)",460,460,753,"154-1-007","Forex inc. (Mont-Laurier)",true,false,false,null,8,460]
["754 - CCPL (Sainte-Thérèse)",754,"152-2-017","CCPL (Sainte-Thérèse)",460,460,754,"154-1-007","Forex inc. (Mont-Laurier)",true,false,false,null,8,460]
["755 - CCPL (Sainte-Thérèse)",755,"152-2-018","CCPL (Sainte-Thérèse)",460,460,755,"154-1-007","Forex inc. (Mont-Laurier)",true,false,false,null,8,460]
["756 - CCPL (Sainte-Thérèse)",756,"152-2-019","CCPL (Sainte-Thérèse)",460,460,756,"154-1-007","Forex inc. (Mont-Laurier)",{"$f":"EXACT(G529,B529)","v":true},false,false,null,8,460]
["757 - CCPL (Sainte-Thérèse)",757,"152-2-020","CCPL (Sainte-Thérèse)",460,460,757,"154-1-007","Forex inc. (Mont-Laurier)",true,false,false,null,8,460]
["758 - CCPL (Sainte-Thérèse)",758,"152-2-021","CCPL (Sainte-Thérèse)",460,460,758,"154-1-007","Forex inc. (Mont-Laurier)",true,false,false,null,8,460]
["648 - CCPL (Mont-Laurier)",648,"154-1-006","CCPL (Mont-Laurier)",240,240,648,null,"Cour DJB Transport, Mansfield-et-Pontefract ",true,false,false,null,4,240]
["649 - CCPL (Mont-Laurier)",649,"154-1-006","CCPL (Mont-Laurier)",460,460,649,null,"Cour DJB Transport, Mansfield-et-Pontefract ",true,false,false,null,8,460]
["656 - CCPL (Mont-Laurier)",656,"154-1-006","CCPL (Mont-Laurier)",340,340,656,null,"Cour DJB Transport, Mansfield-et-Pontefract ",true,false,false,null,6,360]
["657 - CCPL (Mont-Laurier)",657,"154-1-006","CCPL (Mont-Laurier)",300,300,657,null,"Cour DJB Transport, Mansfield-et-Pontefract ",true,false,false,null,5,300]
["658 - CCPL (Mont-Laurier)",658,"154-1-006","CCPL (Mont-Laurier)",460,460,658,null,"Cour DJB Transport, Mansfield-et-Pontefract ",true,false,false,null,8,460]
["659 - CCPL (Mont-Laurier)",659,"154-1-006","CCPL (Mont-Laurier)",460,460,659,null,"Cour DJB Transport, Mansfield-et-Pontefract ",true,false,false,null,8,460]
["660 - CCPL (Mont-Laurier)",660,"154-1-006","CCPL (Mont-Laurier)",180,180,660,null,"Cour DJB Transport, Mansfield-et-Pontefract ",true,false,false,null,3,180]
["661 - CCPL (Mont-Laurier)",661,"154-1-006","CCPL (Mont-Laurier)",40,40,661,null,"Cour DJB Transport, Mansfield-et-Pontefract ",true,false,false,null,1,60]
["662 - CCPL (Mont-Laurier)",662,"154-1-006","CCPL (Mont-Laurier)",40,40,662,null,"Cour DJB Transport, Mansfield-et-Pontefract ",true,false,false,null,1,60]
["750 - CCPL (Mont-Laurier)",750,"154-1-006","CCPL (Mont-Laurier)",380,380,750,null,"Cour DJB Transport, Mansfield-et-Pontefract ",true,false,false,null,7,420]
["751 - CCPL (Mont-Laurier)",751,"154-1-006","CCPL (Mont-Laurier)",460,460,751,null,"Cour DJB Transport, Mansfield-et-Pontefract ",true,false,false,null,8,460]
["752 - CCPL (Mont-Laurier)",752,"154-1-006","CCPL (Mont-Laurier)",460,460,752,null,"Cour DJB Transport, Mansfield-et-Pontefract ",true,false,false,null,8,460]
["753 - CCPL (Mont-Laurier)",753,"154-1-006","CCPL (Mont-Laurier)",460,460,753,null,"Cour DJB Transport, Mansfield-et-Pontefract ",true,false,false,null,8,460]
["754 - CCPL (Mont-Laurier)",754,"154-1-006","CCPL (Mont-Laurier)",400,400,754,null,"Cour DJB Transport, Mansfield-et-Pontefract ",true,false,false,null,7,420]
["755 - CCPL (Mont-Laurier)",755,"154-1-006","CCPL (Mont-Laurier)",220,220,755,null,"Cour DJB Transport, Mansfield-et-Pontefract ",true,false,false,null,4,240]
["756 - CCPL (Mont-Laurier)",756,"154-1-006","CCPL (Mont-Laurier)",460,460,756,null,"Cour DJB Transport, Mansfield-et-Pontefract ",true,false,false,null,8,460]
["757 - CCPL (Mont-Laurier)",757,"154-1-006","CCPL (Mont-Laurier)",460,460,757,null,"Cour DJB Transport, Mansfield-et-Pontefract ",true,false,false,null,8,460]
["758 - CCPL (Mont-Laurier)",758,"154-1-006","CCPL (Mont-Laurier)",460,460,758,null,"Cour DJB Transport, Mansfield-et-Pontefract ",true,false,false,null,8,460]
["648 - Forex inc.",648,"154-1-007","Forex inc.",240,240,648,"154-1-001","Groupe Crête Ferme-Neuve",true,false,false,null,4,240]
["649 - Forex inc.",649,"154-1-007","Forex inc.",460,460,649,"154-1-001","Groupe Crête Ferme-Neuve",true,false,false,null,8,460]
["656 - Forex inc.",656,"154-1-007","Forex inc.",340,340,656,"154-1-001","Groupe Crête Ferme-Neuve",true,false,false,null,6,360]
["657 - Forex inc.",657,"154-1-007","Forex inc.",280,280,657,"154-1-001","Groupe Crête Ferme-Neuve",true,false,false,null,5,300]
["658 - Forex inc.",658,"154-1-007","Forex inc.",460,460,658,"154-1-001","Groupe Crête Ferme-Neuve",true,false,false,null,8,460]
["659 - Forex inc.",659,"154-1-007","Forex inc.",460,460,659,"154-1-001","Groupe Crête Ferme-Neuve",true,false,false,null,8,460]
["660 - Forex inc.",660,"154-1-007","Forex inc.",180,180,660,"154-1-001","Groupe Crête Ferme-Neuve",true,false,false,null,3,180]
["661 - Forex inc.",661,"154-1-007","Forex inc.",40,40,661,"154-1-001","Groupe Crête Ferme-Neuve",true,false,false,null,1,60]
["662 - Forex inc.",662,"154-1-007","Forex inc.",40,40,662,"154-1-001","Groupe Crête Ferme-Neuve",true,false,false,null,1,60]
["750 - Forex inc.",750,"154-1-007","Forex inc.",380,380,750,"154-1-001","Groupe Crête Ferme-Neuve",true,false,false,null,7,420]
["751 - Forex inc.",751,"154-1-007","Forex inc.",460,460,751,"154-1-001","Groupe Crête Ferme-Neuve",true,false,false,null,8,460]
["752 - Forex inc.",752,"154-1-007","Forex inc.",460,460,752,"154-1-001","Groupe Crête Ferme-Neuve",{"$f":"EXACT(G561,B561)","v":true},{"$f":"EXACT(H561,C561)","v":false},{"$f":"EXACT(I561,D561)","v":false},null,8,460]
["753 - Forex inc.",753,"154-1-007","Forex inc.",460,460,753,"154-1-001","Groupe Crête Ferme-Neuve",true,false,false,null,8,460]
["754 - Forex inc.",754,"154-1-007","Forex inc.",400,400,754,"154-1-001","Groupe Crête Ferme-Neuve",true,false,false,null,7,420]
["755 - Forex inc.",755,"154-1-007","Forex inc.",220,220,755,"154-1-001","Groupe Crête Ferme-Neuve",true,false,false,null,4,240]
["756 - Forex inc.",756,"154-1-007","Forex inc.",460,460,756,"154-1-001","Groupe Crête Ferme-Neuve",true,false,false,null,8,460]
["757 - Forex inc.",757,"154-1-007","Forex inc.",460,460,757,"154-1-001","Groupe Crête Ferme-Neuve",true,false,false,null,8,460]
["758 - Forex inc.",758,"154-1-007","Forex inc.",460,460,758,"154-1-001","Groupe Crête Ferme-Neuve",true,false,false,null,8,460]
[]
["Zone de tarification et BGAD (RechercheV) - BGAD B (CT)","Zone","Numéro de l'usine","Nom de l'usine","Plafond$/ha CT","Aide$/m3 CT"]
[{"$f":"CONCATENATE(B570,\" - \",D570)","v":"648 - Louisiana-Pacific (Bois­Franc)"},648,"073-0-001","Louisiana-Pacific (Bois­Franc)",460,8]
["649 - Louisiana-Pacific (Bois­Franc)",649,"073-0-001","Louisiana-Pacific (Bois­Franc)",460,8]
["656 - Louisiana-Pacific (Bois­Franc)",656,"073-0-001","Louisiana-Pacific (Bois­Franc)",460,8]
["657 - Louisiana-Pacific (Bois­Franc)",657,"073-0-001","Louisiana-Pacific (Bois­Franc)",460,8]
["658 - Louisiana-Pacific (Bois­Franc)",658,"073-0-001","Louisiana-Pacific (Bois­Franc)",460,8]
["659 - Louisiana-Pacific (Bois­Franc)",659,"073-0-001","Louisiana-Pacific (Bois­Franc)",460,8]
["660 - Louisiana-Pacific (Bois­Franc)",660,"073-0-001","Louisiana-Pacific (Bois­Franc)",420,7]
["661 - Louisiana-Pacific (Bois­Franc)",661,"073-0-001","Louisiana-Pacific (Bois­Franc)",300,5]
["662 - Louisiana-Pacific (Bois­Franc)",662,"073-0-001","Louisiana-Pacific (Bois­Franc)",300,5]
["750 - Louisiana-Pacific (Bois­Franc)",750,"073-0-001","Louisiana-Pacific (Bois­Franc)",460,8]
["751 - Louisiana-Pacific (Bois­Franc)",751,"073-0-001","Louisiana-Pacific (Bois­Franc)",460,8]
["752 - Louisiana-Pacific (Bois­Franc)",752,"073-0-001","Louisiana-Pacific (Bois­Franc)",460,8]
["753 - Louisiana-Pacific (Bois­Franc)",753,"073-0-001","Louisiana-Pacific (Bois­Franc)",460,8]
["754 - Louisiana-Pacific (Bois­Franc)",754,"073-0-001","Louisiana-Pacific (Bois­Franc)",300,5]
["755 - Louisiana-Pacific (Bois­Franc)",755,"073-0-001","Louisiana-Pacific (Bois­Franc)",60,1]
["756 - Louisiana-Pacific (Bois­Franc)",756,"073-0-001","Louisiana-Pacific (Bois­Franc)",460,8]
["757 - Louisiana-Pacific (Bois­Franc)",757,"073-0-001","Louisiana-Pacific (Bois­Franc)",460,8]
["758 - Louisiana-Pacific (Bois­Franc)",758,"073-0-001","Louisiana-Pacific (Bois­Franc)",460,8]
["648 - Domtar (Maniwaki)",648,"073-0-001","Domtar (Maniwaki)",460,8]
["649 - Domtar (Maniwaki)",649,"073-0-002","Domtar (Maniwaki)",460,8]
["656 - Domtar (Maniwaki)",656,"073-0-003","Domtar (Maniwaki)",460,8]
["657 - Domtar (Maniwaki)",657,"073-0-004","Domtar (Maniwaki)",460,8]
["658 - Domtar (Maniwaki)",658,"073-0-005","Domtar (Maniwaki)",460,8]
["659 - Domtar (Maniwaki)",659,"073-0-006","Domtar (Maniwaki)",460,8]
["660 - Domtar (Maniwaki)",660,"073-0-007","Domtar (Maniwaki)",420,7]
["661 - Domtar (Maniwaki)",661,"073-0-008","Domtar (Maniwaki)",300,5]
["662 - Domtar (Maniwaki)",662,"073-0-009","Domtar (Maniwaki)",300,5]
["750 - Domtar (Maniwaki)",750,"073-0-010","Domtar (Maniwaki)",420,7]
["751 - Domtar (Maniwaki)",751,"073-0-011","Domtar (Maniwaki)",460,8]
["752 - Domtar (Maniwaki)",752,"073-0-012","Domtar (Maniwaki)",460,8]
["753 - Domtar (Maniwaki)",753,"073-0-013","Domtar (Maniwaki)",460,8]
["754 - Domtar (Maniwaki)",754,"073-0-014","Domtar (Maniwaki)",240,4]
["755 - Domtar (Maniwaki)",755,"073-0-015","Domtar (Maniwaki)",0,0]
["756 - Domtar (Maniwaki)",756,"073-0-016","Domtar (Maniwaki)",460,8]
["757 - Domtar (Maniwaki)",757,"073-0-017","Domtar (Maniwaki)",420,7]
["758 - Domtar (Maniwaki)",758,"073-0-018","Domtar (Maniwaki)",460,8]
["648 - CCPL (Rapides-des-Joachims)",648,"071-1-002","CCPL (Rapides-des-Joachims)",460,8]
["649 - CCPL (Rapides-des-Joachims)",649,"071-1-002","CCPL (Rapides-des-Joachims)",460,8]
["656 - CCPL (Rapides-des-Joachims)",656,"071-1-002","CCPL (Rapides-des-Joachims)",460,8]
["657 - CCPL (Rapides-des-Joachims)",657,"071-1-002","CCPL (Rapides-des-Joachims)",460,8]
["658 - CCPL (Rapides-des-Joachims)",658,"071-1-002","CCPL (Rapides-des-Joachims)",460,8]
["659 - CCPL (Rapides-des-Joachims)",659,"071-1-002","CCPL (Rapides-des-Joachims)",460,8]
["660 - CCPL (Rapides-des-Joachims)",660,"071-1-002","CCPL (Rapides-des-Joachims)",460,8]
["661 - CCPL (Rapides-des-Joachims)",661,"071-1-002","CCPL (Rapides-des-Joachims)",460,8]
["662 - CCPL (Rapides-des-Joachims)",662,"071-1-002","CCPL (Rapides-des-Joachims)",460,8]
["750 - CCPL (Rapides-des-Joachims)",750,"071-1-002","CCPL (Rapides-des-Joachims)",460,8]
["751 - CCPL (Rapides-des-Joachims)",751,"071-1-002","CCPL (Rapides-des-Joachims)",300,5]
["752 - CCPL (Rapides-des-Joachims)",752,"071-1-002","CCPL (Rapides-des-Joachims)",60,1]
["753 - CCPL (Rapides-des-Joachims)",753,"071-1-002","CCPL (Rapides-des-Joachims)",120,2]
["754 - CCPL (Rapides-des-Joachims)",754,"071-1-002","CCPL (Rapides-des-Joachims)",460,8]
["755 - CCPL (Rapides-des-Joachims)",755,"071-1-002","CCPL (Rapides-des-Joachims)",460,8]
["756 - CCPL (Rapides-des-Joachims)",756,"071-1-002","CCPL (Rapides-des-Joachims)",360,6]
["757 - CCPL (Rapides-des-Joachims)",757,"071-1-002","CCPL (Rapides-des-Joachims)",460,8]
["758 - CCPL (Rapides-des-Joachims)",758,"071-1-002","CCPL (Rapides-des-Joachims)",460,8]
["648 - CCPL (Low)",648,"072-1-001","CCPL (Low)",460,8]
["649 - CCPL (Low)",649,"072-1-001","CCPL (Low)",460,8]
["656 - CCPL (Low)",656,"072-1-001","CCPL (Low)",460,8]
["657 - CCPL (Low)",657,"072-1-001","CCPL (Low)",460,8]
["658 - CCPL (Low)",658,"072-1-001","CCPL (Low)",460,8]
["659 - CCPL (Low)",659,"072-1-001","CCPL (Low)",460,8]
["660 - CCPL (Low)",660,"072-1-001","CCPL (Low)",460,8]
["661 - CCPL (Low)",661,"072-1-001","CCPL (Low)",460,8]
["662 - CCPL (Low)",662,"072-1-001","CCPL (Low)",300,5]
["750 - CCPL (Low)",750,"072-1-001","CCPL (Low)",60,1]
[{"$f":"CONCATENATE(B634,\" - \",D634)","v":"751 - CCPL (Low)"},751,"072-1-001","CCPL (Low)",300,5]
["752 - CCPL (Low)",752,"072-1-001","CCPL (Low)",460,8]
["753 - CCPL (Low)",753,"072-1-001","CCPL (Low)",460,8]
["754 - CCPL (Low)",754,"072-1-001","CCPL (Low)",360,6]
["755 - CCPL (Low)",755,"072-1-001","CCPL (Low)",300,5]
["756 - CCPL (Low)",756,"072-1-001","CCPL (Low)",460,8]
["757 - CCPL (Low)",757,"072-1-001","CCPL (Low)",460,8]
["758 - CCPL (Low)",758,"072-1-001","CCPL (Low)",460,8]
["648 - CCPL (Mansfield-et-Pontefract )",648,null,"CCPL (Mansfield-et-Pontefract )",460,8]
["649 - CCPL (Mansfield-et-Pontefract )",649,null,"CCPL (Mansfield-et-Pontefract )",460,8]
["656 - CCPL (Mansfield-et-Pontefract )",656,null,"CCPL (Mansfield-et-Pontefract )",460,8]
["657 - CCPL (Mansfield-et-Pontefract )",657,null,"CCPL (Mansfield-et-Pontefract )",460,8]
["658 - CCPL (Mansfield-et-Pontefract )",658,null,"CCPL (Mansfield-et-Pontefract )",460,8]
["659 - CCPL (Mansfield-et-Pontefract )",659,null,"CCPL (Mansfield-et-Pontefract )",460,8]
["660 - CCPL (Mansfield-et-Pontefract )",660,null,"CCPL (Mansfield-et-Pontefract )",460,8]
["661 - CCPL (Mansfield-et-Pontefract )",661,null,"CCPL (Mansfield-et-Pontefract )",460,8]
["662 - CCPL (Mansfield-et-Pontefract )",662,null,"CCPL (Mansfield-et-Pontefract )",460,8]
["750 - CCPL (Mansfield-et-Pontefract )",750,null,"CCPL (Mansfield-et-Pontefract )",460,8]
["751 - CCPL (Mansfield-et-Pontefract )",751,null,"CCPL (Mansfield-et-Pontefract )",0,0]
["752 - CCPL (Mansfield-et-Pontefract )",752,null,"CCPL (Mansfield-et-Pontefract )",360,6]
["753 - CCPL (Mansfield-et-Pontefract )",753,null,"CCPL (Mansfield-et-Pontefract )",360,6]
["754 - CCPL (Mansfield-et-Pontefract )",754,null,"CCPL (Mansfield-et-Pontefract )",300,5]
["755 - CCPL (Mansfield-et-Pontefract )",755,null,"CCPL (Mansfield-et-Pontefract )",460,8]
["756 - CCPL (Mansfield-et-Pontefract )",756,null,"CCPL (Mansfield-et-Pontefract )",460,8]
["757 - CCPL (Mansfield-et-Pontefract )",757,null,"CCPL (Mansfield-et-Pontefract )",460,8]
["758 - CCPL (Mansfield-et-Pontefract )",758,null,"CCPL (Mansfield-et-Pontefract )",460,8]
["648 - Lauzon - Planchers de bois exclusifs inc.",648,"072-1-005","Lauzon - Planchers de bois exclusifs inc.",420,7]
["649 - Lauzon - Planchers de bois exclusifs inc.",649,"072-1-005","Lauzon - Planchers de bois exclusifs inc.",240,4]
["656 - Lauzon - Planchers de bois exclusifs inc.",656,"072-1-005","Lauzon - Planchers de bois exclusifs inc.",460,8]
["657 - Lauzon - Planchers de bois exclusifs inc.",657,"072-1-005","Lauzon - Planchers de bois exclusifs inc.",460,8]
["658 - Lauzon - Planchers de bois exclusifs inc.",658,"072-1-005","Lauzon - Planchers de bois exclusifs inc.",460,8]
["659 - Lauzon - Planchers de bois exclusifs inc.",659,"072-1-005","Lauzon - Planchers de bois exclusifs inc.",460,8]
["660 - Lauzon - Planchers de bois exclusifs inc.",660,"072-1-005","Lauzon - Planchers de bois exclusifs inc.",460,8]
["661 - Lauzon - Planchers de bois exclusifs inc.",661,"072-1-005","Lauzon - Planchers de bois exclusifs inc.",460,8]
["662 - Lauzon - Planchers de bois exclusifs inc.",662,"072-1-005","Lauzon - Planchers de bois exclusifs inc.",360,6]
["750 - Lauzon - Planchers de bois exclusifs inc.",750,"072-1-005","Lauzon - Planchers de bois exclusifs inc.",0,0]
["751 - Lauzon - Planchers de bois exclusifs inc.",751,"072-1-005","Lauzon - Planchers de bois exclusifs inc.",460,8]
["752 - Lauzon - Planchers de bois exclusifs inc.",752,"072-1-005","Lauzon - Planchers de bois exclusifs inc.",460,8]
["753 - Lauzon - Planchers de bois exclusifs inc.",753,"072-1-005","Lauzon - Planchers de bois exclusifs inc.",460,8]
["754 - Lauzon - Planchers de bois exclusifs inc.",754,"072-1-005","Lauzon - Planchers de bois exclusifs inc.",460,8]
["755 - Lauzon - Planchers de bois exclusifs inc.",755,"072-1-005","Lauzon - Planchers de bois exclusifs inc.",460,8]
["756 - Lauzon - Planchers de bois exclusifs inc.",756,"072-1-005","Lauzon - Planchers de bois exclusifs inc.",460,8]
["757 - Lauzon - Planchers de bois exclusifs inc.",757,"072-1-005","Lauzon - Planchers de bois exclusifs inc.",460,8]
["758 - Lauzon - Planchers de bois exclusifs inc.",758,"072-1-005","Lauzon - Planchers de bois exclusifs inc.",460,8]
["648 - Forespect inc.",648,"072-1-012","Forespect inc.",240,4]
["649 - Forespect inc.",649,"072-1-012","Forespect inc.",120,2]
["656 - Forespect inc.",656,"072-1-012","Forespect inc.",420,7]
["657 - Forespect inc.",657,"072-1-012","Forespect inc.",460,8]
["658 - Forespect inc.",658,"072-1-012","Forespect inc.",460,8]
["659 - Forespect inc.",659,"072-1-012","Forespect inc.",460,8]
["660 - Forespect inc.",660,"072-1-012","Forespect inc.",460,8]
["661 - Forespect inc.",661,"072-1-012","Forespect inc.",420,7]
["662 - Forespect inc.",662,"072-1-012","Forespect inc.",240,4]
["750 - Forespect inc.",750,"072-1-012","Forespect inc.",300,5]
["751 - Forespect inc.",751,"072-1-012","Forespect inc.",460,8]
["752 - Forespect inc.",752,"072-1-012","Forespect inc.",460,8]
["753 - Forespect inc.",753,"072-1-012","Forespect inc.",460,8]
["754 - Forespect inc.",754,"072-1-012","Forespect inc.",460,8]
["755 - Forespect inc.",755,"072-1-012","Forespect inc.",460,8]
["756 - Forespect inc.",756,"072-1-012","Forespect inc.",460,8]
["757 - Forespect inc.",757,"072-1-012","Forespect inc.",460,8]
["758 - Forespect inc.",758,"072-1-012","Forespect inc.",460,8]
["648 - Produits forestiers Lachance inc.",648,"142-1-005","Produits forestiers Lachance inc.",460,8]
["649 - Produits forestiers Lachance inc.",649,"142-1-005","Produits forestiers Lachance inc.",180,3]
[{"$f":"CONCATENATE(B698,\" - \",D698)","v":"656 - Produits forestiers Lachance inc."},656,"142-1-005","Produits forestiers Lachance inc.",360,6]
["657 - Produits forestiers Lachance inc.",657,"142-1-005","Produits forestiers Lachance inc.",460,8]
["658 - Produits forestiers Lachance inc.",658,"142-1-005","Produits forestiers Lachance inc.",460,8]
["659 - Produits forestiers Lachance inc.",659,"142-1-005","Produits forestiers Lachance inc.",460,8]
["660 - Produits forestiers Lachance inc.",660,"142-1-005","Produits forestiers Lachance inc.",460,8]
["661 - Produits forestiers Lachance inc.",661,"142-1-005","Produits forestiers Lachance inc.",460,8]
["662 - Produits forestiers Lachance inc.",662,"142-1-005","Produits forestiers Lachance inc.",460,8]
["750 - Produits forestiers Lachance inc.",750,"142-1-005","Produits forestiers Lachance inc.",460,8]
["751 - Produits forestiers Lachance inc.",751,"142-1-005","Produits forestiers Lachance inc.",460,8]
["752 - Produits forestiers Lachance inc.",752,"142-1-005","Produits forestiers Lachance inc.",460,8]
["753 - Produits forestiers Lachance inc.",753,"142-1-005","Produits forestiers Lachance inc.",460,8]
["754 - Produits forestiers Lachance inc.",754,"142-1-005","Produits forestiers Lachance inc.",460,8]
["755 - Produits forestiers Lachance inc.",755,"142-1-005","Produits forestiers Lachance inc.",460,8]
["756 - Produits forestiers Lachance inc.",756,"142-1-005","Produits forestiers Lachance inc.",460,8]
["757 - Produits forestiers Lachance inc.",757,"142-1-005","Produits forestiers Lachance inc.",460,8]
["758 - Produits forestiers Lachance inc.",758,"142-1-005","Produits forestiers Lachance inc.",460,8]
["648 - Groupe Crête (Mont-Blanc)",648,"151-1-019","Groupe Crête (Mont-Blanc)",180,3]
["649 - Groupe Crête (Mont-Blanc)",649,"151-1-019","Groupe Crête (Mont-Blanc)",60,1]
["656 - Groupe Crête (Mont-Blanc)",656,"151-1-019","Groupe Crête (Mont-Blanc)",360,6]
["657 - Groupe Crête (Mont-Blanc)",657,"151-1-019","Groupe Crête (Mont-Blanc)",420,7]
["658 - Groupe Crête (Mont-Blanc)",658,"151-1-019","Groupe Crête (Mont-Blanc)",460,8]
["659 - Groupe Crête (Mont-Blanc)",659,"151-1-019","Groupe Crête (Mont-Blanc)",460,8]
["660 - Groupe Crête (Mont-Blanc)",660,"151-1-019","Groupe Crête (Mont-Blanc)",460,8]
["661 - Groupe Crête (Mont-Blanc)",661,"151-1-019","Groupe Crête (Mont-Blanc)",300,5]
["662 - Groupe Crête (Mont-Blanc)",662,"151-1-019","Groupe Crête (Mont-Blanc)",360,6]
["750 - Groupe Crête (Mont-Blanc)",750,"151-1-019","Groupe Crête (Mont-Blanc)",460,8]
["751 - Groupe Crête (Mont-Blanc)",751,"151-1-019","Groupe Crête (Mont-Blanc)",460,8]
["752 - Groupe Crête (Mont-Blanc)",752,"151-1-019","Groupe Crête (Mont-Blanc)",460,8]
["753 - Groupe Crête (Mont-Blanc)",753,"151-1-019","Groupe Crête (Mont-Blanc)",460,8]
["754 - Groupe Crête (Mont-Blanc)",754,"151-1-019","Groupe Crête (Mont-Blanc)",460,8]
["755 - Groupe Crête (Mont-Blanc)",755,"151-1-019","Groupe Crête (Mont-Blanc)",460,8]
["756 - Groupe Crête (Mont-Blanc)",756,"151-1-019","Groupe Crête (Mont-Blanc)",460,8]
["757 - Groupe Crête (Mont-Blanc)",757,"151-1-019","Groupe Crête (Mont-Blanc)",460,8]
["758 - Groupe Crête (Mont-Blanc)",758,"151-1-019","Groupe Crête (Mont-Blanc)",460,8]
["648 - Groupe Crête (Ferme-Neuve)",648,"154-1-007","Groupe Crête (Ferme-Neuve)",300,5]
["649 - Groupe Crête (Ferme-Neuve)",649,"154-1-007","Groupe Crête (Ferme-Neuve)",480,8]
["656 - Groupe Crête (Ferme-Neuve)",656,"154-1-007","Groupe Crête (Ferme-Neuve)",420,7]
["657 - Groupe Crête (Ferme-Neuve)",657,"154-1-007","Groupe Crête (Ferme-Neuve)",240,4]
["658 - Groupe Crête (Ferme-Neuve)",658,"154-1-007","Groupe Crête (Ferme-Neuve)",420,7]
["659 - Groupe Crête (Ferme-Neuve)",659,"154-1-007","Groupe Crête (Ferme-Neuve)",480,8]
["660 - Groupe Crête (Ferme-Neuve)",660,"154-1-007","Groupe Crête (Ferme-Neuve)",120,2]
["661 - Groupe Crête (Ferme-Neuve)",661,"154-1-007","Groupe Crête (Ferme-Neuve)",0,0]
["662 - Groupe Crête (Ferme-Neuve)",662,"154-1-007","Groupe Crête (Ferme-Neuve)",60,1]
["750 - Groupe Crête (Ferme-Neuve)",750,"154-1-007","Groupe Crête (Ferme-Neuve)",480,8]
["751 - Groupe Crête (Ferme-Neuve)",751,"154-1-007","Groupe Crête (Ferme-Neuve)",480,8]
["752 - Groupe Crête (Ferme-Neuve)",752,"154-1-007","Groupe Crête (Ferme-Neuve)",480,8]
["753 - Groupe Crête (Ferme-Neuve)",753,"154-1-007","Groupe Crête (Ferme-Neuve)",480,8]
["754 - Groupe Crête (Ferme-Neuve)",754,"154-1-007","Groupe Crête (Ferme-Neuve)",480,8]
["755 - Groupe Crête (Ferme-Neuve)",755,"154-1-007","Groupe Crête (Ferme-Neuve)",240,4]
["756 - Groupe Crête (Ferme-Neuve)",756,"154-1-007","Groupe Crête (Ferme-Neuve)",480,8]
["757 - Groupe Crête (Ferme-Neuve)",757,"154-1-007","Groupe Crête (Ferme-Neuve)",480,8]
["758 - Groupe Crête (Ferme-Neuve)",758,"154-1-007","Groupe Crête (Ferme-Neuve)",480,8]
["648 - Scierie Carrière ltée",648,"151-1-020","Scierie Carrière ltée",360,6]
["649 - Scierie Carrière ltée",649,"151-1-020","Scierie Carrière ltée",60,1]
["656 - Scierie Carrière ltée",656,"151-1-020","Scierie Carrière ltée",460,8]
["657 - Scierie Carrière ltée",657,"151-1-020","Scierie Carrière ltée",460,8]
["658 - Scierie Carrière ltée",658,"151-1-020","Scierie Carrière ltée",460,8]
["659 - Scierie Carrière ltée",659,"151-1-020","Scierie Carrière ltée",460,8]
["660 - Scierie Carrière ltée",660,"151-1-020","Scierie Carrière ltée",460,8]
["661 - Scierie Carrière ltée",661,"151-1-020","Scierie Carrière ltée",460,8]
["662 - Scierie Carrière ltée",662,"151-1-020","Scierie Carrière ltée",460,8]
["750 - Scierie Carrière ltée",750,"151-1-020","Scierie Carrière ltée",300,5]
["751 - Scierie Carrière ltée",751,"151-1-020","Scierie Carrière ltée",460,8]
["752 - Scierie Carrière ltée",752,"151-1-020","Scierie Carrière ltée",460,8]
[{"$f":"CONCATENATE(B762,\" - \",D762)","v":"753 - Scierie Carrière ltée"},753,"151-1-020","Scierie Carrière ltée",460,8]
["754 - Scierie Carrière ltée",754,"151-1-020","Scierie Carrière ltée",460,8]
["755 - Scierie Carrière ltée",755,"151-1-020","Scierie Carrière ltée",460,8]
["756 - Scierie Carrière ltée",756,"151-1-020","Scierie Carrière ltée",460,8]
["757 - Scierie Carrière ltée",757,"151-1-020","Scierie Carrière ltée",460,8]
["758 - Scierie Carrière ltée",758,"151-1-020","Scierie Carrière ltée",460,8]
["648 - CCPL (Sainte-Thérèse)",648,"152-2-004","CCPL (Sainte-Thérèse)",460,8]
["649 - CCPL (Sainte-Thérèse)",649,"152-2-005","CCPL (Sainte-Thérèse)",60,1]
["656 - CCPL (Sainte-Thérèse)",656,"152-2-006","CCPL (Sainte-Thérèse)",460,8]
["657 - CCPL (Sainte-Thérèse)",657,"152-2-007","CCPL (Sainte-Thérèse)",460,8]
["658 - CCPL (Sainte-Thérèse)",658,"152-2-008","CCPL (Sainte-Thérèse)",460,8]
["659 - CCPL (Sainte-Thérèse)",659,"152-2-009","CCPL (Sainte-Thérèse)",460,8]
["660 - CCPL (Sainte-Thérèse)",660,"152-2-010","CCPL (Sainte-Thérèse)",460,8]
["661 - CCPL (Sainte-Thérèse)",661,"152-2-011","CCPL (Sainte-Thérèse)",460,8]
["662 - CCPL (Sainte-Thérèse)",662,"152-2-012","CCPL (Sainte-Thérèse)",460,8]
["750 - CCPL (Sainte-Thérèse)",750,"152-2-013","CCPL (Sainte-Thérèse)",460,8]
["751 - CCPL (Sainte-Thérèse)",751,"152-2-014","CCPL (Sainte-Thérèse)",460,8]
["752 - CCPL (Sainte-Thérèse)",752,"152-2-015","CCPL (Sainte-Thérèse)",460,8]
["753 - CCPL (Sainte-Thérèse)",753,"152-2-016","CCPL (Sainte-Thérèse)",460,8]
["754 - CCPL (Sainte-Thérèse)",754,"152-2-017","CCPL (Sainte-Thérèse)",460,8]
["755 - CCPL (Sainte-Thérèse)",755,"152-2-018","CCPL (Sainte-Thérèse)",460,8]
["756 - CCPL (Sainte-Thérèse)",756,"152-2-019","CCPL (Sainte-Thérèse)",460,8]
["757 - CCPL (Sainte-Thérèse)",757,"152-2-020","CCPL (Sainte-Thérèse)",460,8]
["758 - CCPL (Sainte-Thérèse)",758,"152-2-021","CCPL (Sainte-Thérèse)",460,8]
["648 - CCPL (Mont-Laurier)",648,"154-1-006","CCPL (Mont-Laurier)",240,4]
["649 - CCPL (Mont-Laurier)",649,"154-1-006","CCPL (Mont-Laurier)",460,8]
["656 - CCPL (Mont-Laurier)",656,"154-1-006","CCPL (Mont-Laurier)",360,6]
["657 - CCPL (Mont-Laurier)",657,"154-1-006","CCPL (Mont-Laurier)",300,5]
["658 - CCPL (Mont-Laurier)",658,"154-1-006","CCPL (Mont-Laurier)",460,8]
["659 - CCPL (Mont-Laurier)",659,"154-1-006","CCPL (Mont-Laurier)",460,8]
["660 - CCPL (Mont-Laurier)",660,"154-1-006","CCPL (Mont-Laurier)",180,3]
["661 - CCPL (Mont-Laurier)",661,"154-1-006","CCPL (Mont-Laurier)",60,1]
["662 - CCPL (Mont-Laurier)",662,"154-1-006","CCPL (Mont-Laurier)",60,1]
["750 - CCPL (Mont-Laurier)",750,"154-1-006","CCPL (Mont-Laurier)",420,7]
["751 - CCPL (Mont-Laurier)",751,"154-1-006","CCPL (Mont-Laurier)",460,8]
["752 - CCPL (Mont-Laurier)",752,"154-1-006","CCPL (Mont-Laurier)",460,8]
["753 - CCPL (Mont-Laurier)",753,"154-1-006","CCPL (Mont-Laurier)",460,8]
["754 - CCPL (Mont-Laurier)",754,"154-1-006","CCPL (Mont-Laurier)",420,7]
["755 - CCPL (Mont-Laurier)",755,"154-1-006","CCPL (Mont-Laurier)",240,4]
["756 - CCPL (Mont-Laurier)",756,"154-1-006","CCPL (Mont-Laurier)",460,8]
["757 - CCPL (Mont-Laurier)",757,"154-1-006","CCPL (Mont-Laurier)",460,8]
["758 - CCPL (Mont-Laurier)",758,"154-1-006","CCPL (Mont-Laurier)",460,8]
["648 - Forex inc.",648,"154-1-007","Forex inc.",240,4]
["649 - Forex inc.",649,"154-1-007","Forex inc.",460,8]
["656 - Forex inc.",656,"154-1-007","Forex inc.",360,6]
["657 - Forex inc.",657,"154-1-007","Forex inc.",300,5]
["658 - Forex inc.",658,"154-1-007","Forex inc.",460,8]
["659 - Forex inc.",659,"154-1-007","Forex inc.",460,8]
["660 - Forex inc.",660,"154-1-007","Forex inc.",180,3]
["661 - Forex inc.",661,"154-1-007","Forex inc.",60,1]
["662 - Forex inc.",662,"154-1-007","Forex inc.",60,1]
["750 - Forex inc.",750,"154-1-007","Forex inc.",420,7]
["751 - Forex inc.",751,"154-1-007","Forex inc.",460,8]
["752 - Forex inc.",752,"154-1-007","Forex inc.",460,8]
["753 - Forex inc.",753,"154-1-007","Forex inc.",460,8]
["754 - Forex inc.",754,"154-1-007","Forex inc.",420,7]
["755 - Forex inc.",755,"154-1-007","Forex inc.",240,4]
["756 - Forex inc.",756,"154-1-007","Forex inc.",460,8]
["757 - Forex inc.",757,"154-1-007","Forex inc.",460,8]
["758 - Forex inc.",758,"154-1-007","Forex inc.",460,8]
[]
["Provenance et destination (RechercheV) - A Usine","Municipalité","Destination","Aide"]
[{"$f":"CONCATENATE(B824,\" - \",C824)","v":"Mont-Blanc - Domtar (Windsor)"},"Mont-Blanc","Domtar (Windsor)",30]
["Mont-Blanc - Biomasse du lac Taureau (Saint-Michel-des-Saints)","Mont-Blanc","Biomasse du lac Taureau (Saint-Michel-des-Saints)",19]
["Mont-Blanc - Rayonier (Témiscaming)","Mont-Blanc","Rayonier (Témiscaming)",54]
["Mont-Blanc - Silicium Québec (Bécancour)","Mont-Blanc","Silicium Québec (Bécancour)",24]
["Mont-Blanc - WestRock (La Tuque)","Mont-Blanc","WestRock (La Tuque)",47]
["Mont-Blanc - Tafisa Canada (Lac-Mégantic)","Mont-Blanc","Tafisa Canada (Lac-Mégantic)",44]
["Mont-Blanc - Kruger (Trois-Rivières)","Mont-Blanc","Kruger (Trois-Rivières)",22]
["Ferme-Neuve - Domtar (Windsor)","Ferme-Neuve","Domtar (Windsor)",50]
["Ferme-Neuve - Biomasse du lac Taureau (Saint-Michel-des-Saints)","Ferme-Neuve","Biomasse du lac Taureau (Saint-Michel-des-Saints)",36]
["Ferme-Neuve - Rayonier (Témiscaming)","Ferme-Neuve","Rayonier (Témiscaming)",54]
["Ferme-Neuve - Silicium Québec (Bécancour)","Ferme-Neuve","Silicium Québec (Bécancour)",47]
["Ferme-Neuve - WestRock (La Tuque)","Ferme-Neuve","WestRock (La Tuque)",54]
["Ferme-Neuve - Tafisa Canada (Lac-Mégantic)","Ferme-Neuve","Tafisa Canada (Lac-Mégantic)",54]
["Ferme-Neuve - Kruger (Trois-Rivières)","Ferme-Neuve","Kruger (Trois-Rivières)",45]
["Lachute - Domtar (Windsor)","Lachute","Domtar (Windsor)",27]
["Lachute - Biomasse du lac Taureau (Saint-Michel-des-Saints)","Lachute","Biomasse du lac Taureau (Saint-Michel-des-Saints)",28]
["Lachute - Rayonier (Témiscaming)","Lachute","Rayonier (Témiscaming)",54]
["Lachute - Silicium Québec (Bécancour)","Lachute","Silicium Québec (Bécancour)",23]
["Lachute - WestRock (La Tuque)","Lachute","WestRock (La Tuque)",45]
["Lachute - Tafisa Canada (Lac-Mégantic)","Lachute","Tafisa Canada (Lac-Mégantic)",42]
["Lachute - Kruger (Trois-Rivières)","Lachute","Kruger (Trois-Rivières)",21]
["Mont-Laurier - Domtar (Windsor)","Mont-Laurier","Domtar (Windsor)",46]
["Mont-Laurier - Biomasse du lac Taureau (Saint-Michel-des-Saints)","Mont-Laurier","Biomasse du lac Taureau (Saint-Michel-des-Saints)",37]
["Mont-Laurier - Rayonier (Témiscaming)","Mont-Laurier","Rayonier (Témiscaming)",54]
["Mont-Laurier - Silicium Québec (Bécancour)","Mont-Laurier","Silicium Québec (Bécancour)",42]
["Mont-Laurier - WestRock (La Tuque)","Mont-Laurier","WestRock (La Tuque)",54]
["Mont-Laurier - Tafisa Canada (Lac-Mégantic)","Mont-Laurier","Tafisa Canada (Lac-Mégantic)",53]
["Mont-Laurier - Kruger (Trois-Rivières)","Mont-Laurier","Kruger (Trois-Rivières)",39]
["Namur - Domtar (Windsor)","Namur","Domtar (Windsor)",35]
["Namur - Biomasse du lac Taureau (Saint-Michel-des-Saints)","Namur","Biomasse du lac Taureau (Saint-Michel-des-Saints)",25]
["Namur - Rayonier (Témiscaming)","Namur","Rayonier (Témiscaming)",54]
["Namur - Silicium Québec (Bécancour)","Namur","Silicium Québec (Bécancour)",30]
[{"$f":"CONCATENATE(B856,\" - \",C856)","v":"Namur - WestRock (La Tuque)"},"Namur","WestRock (La Tuque)",47]
["Namur - Tafisa Canada (Lac-Mégantic)","Namur","Tafisa Canada (Lac-Mégantic)",51]
["Namur - Kruger (Trois-Rivières)","Namur","Kruger (Trois-Rivières)",29]
["Thurso - Domtar (Windsor)","Thurso","Domtar (Windsor)",36]
["Thurso - Biomasse du lac Taureau (Saint-Michel-des-Saints)","Thurso","Biomasse du lac Taureau (Saint-Michel-des-Saints)",32]
["Thurso - Rayonier (Témiscaming)","Thurso","Rayonier (Témiscaming)",49]
["Thurso - Silicium Québec (Bécancour)","Thurso","Silicium Québec (Bécancour)",30]
["Thurso - WestRock (La Tuque)","Thurso","WestRock (La Tuque)",47]
["Thurso - Tafisa Canada (Lac-Mégantic)","Thurso","Tafisa Canada (Lac-Mégantic)",51]
["Thurso - Kruger (Trois-Rivières)","Thurso","Kruger (Trois-Rivières)",29]
["Low - Domtar (Windsor)","Low","Domtar (Windsor)",42]
["Low - Biomasse du lac Taureau (Saint-Michel-des-Saints)","Low","Biomasse du lac Taureau (Saint-Michel-des-Saints)",46]
["Low - Rayonier (Témiscaming)","Low","Rayonier (Témiscaming)",49]
["Low - Silicium Québec (Bécancour)","Low","Silicium Québec (Bécancour)",44]
["Low - WestRock (La Tuque)","Low","WestRock (La Tuque)",54]
["Low - Tafisa Canada (Lac-Mégantic)","Low","Tafisa Canada (Lac-Mégantic)",54]
["Low - Kruger (Trois-Rivières)","Low","Kruger (Trois-Rivières)",44]
["Rapides-Des-Joachims - Domtar (Windsor)","Rapides-Des-Joachims","Domtar (Windsor)",54]
["Rapides-Des-Joachims - Biomasse du lac Taureau (Saint-Michel-des-Saints)","Rapides-Des-Joachims","Biomasse du lac Taureau (Saint-Michel-des-Saints)",54]
["Rapides-Des-Joachims - Rayonier (Témiscaming)","Rapides-Des-Joachims","Rayonier (Témiscaming)",22]
["Rapides-Des-Joachims - Silicium Québec (Bécancour)","Rapides-Des-Joachims","Silicium Québec (Bécancour)",54]
["Rapides-Des-Joachims - WestRock (La Tuque)","Rapides-Des-Joachims","WestRock (La Tuque)",54]
["Rapides-Des-Joachims - Tafisa Canada (Lac-Mégantic)","Rapides-Des-Joachims","Tafisa Canada (Lac-Mégantic)",54]
["Rapides-Des-Joachims - Kruger (Trois-Rivières)","Rapides-Des-Joachims","Kruger (Trois-Rivières)",54]
["Bois-Francs - Domtar (Windsor)","Bois-Francs","Domtar (Windsor)",48]
["Bois-Francs - Biomasse du lac Taureau (Saint-Michel-des-Saints)","Bois-Francs","Biomasse du lac Taureau (Saint-Michel-des-Saints)",42]
["Bois-Francs - Rayonier (Témiscaming)","Bois-Francs","Rayonier (Témiscaming)",50]
["Bois-Francs - Silicium Québec (Bécancour)","Bois-Francs","Silicium Québec (Bécancour)",44]
["Bois-Francs - WestRock (La Tuque)","Bois-Francs","WestRock (La Tuque)",54]
["Bois-Francs - Tafisa Canada (Lac-Mégantic)","Bois-Francs","Tafisa Canada (Lac-Mégantic)",54]
["Bois-Francs - Kruger (Trois-Rivières)","Bois-Francs","Kruger (Trois-Rivières)",43]
["Maniwaki - Domtar (Windsor)","Maniwaki","Domtar (Windsor)",50]
[{"$f":"CONCATENATE(B888,\" - \",C888)","v":"Maniwaki - Biomasse du lac Taureau (Saint-Michel-des-Saints)"},"Maniwaki","Biomasse du lac Taureau (Saint-Michel-des-Saints)",43]
["Maniwaki - Rayonier (Témiscaming)","Maniwaki","Rayonier (Témiscaming)",47]
["Maniwaki - Silicium Québec (Bécancour)","Maniwaki","Silicium Québec (Bécancour)",44]
["Maniwaki - WestRock (La Tuque)","Maniwaki","WestRock (La Tuque)",54]
["Maniwaki - Tafisa Canada (Lac-Mégantic)","Maniwaki","Tafisa Canada (Lac-Mégantic)",54]
["Maniwaki - Kruger (Trois-Rivières)","Maniwaki","Kruger (Trois-Rivières)",43]
["Notre-Dame-de-Pontmain - Domtar (Windsor)","Notre-Dame-de-Pontmain","Domtar (Windsor)",44]
["Notre-Dame-de-Pontmain - Biomasse du lac Taureau (Saint-Michel-des-Saints)","Notre-Dame-de-Pontmain","Biomasse du lac Taureau (Saint-Michel-des-Saints)",39]
["Notre-Dame-de-Pontmain - Rayonier (Témiscaming)","Notre-Dame-de-Pontmain","Rayonier (Témiscaming)",54]
["Notre-Dame-de-Pontmain - Silicium Québec (Bécancour)","Notre-Dame-de-Pontmain","Silicium Québec (Bécancour)",47]
["Notre-Dame-de-Pontmain - WestRock (La Tuque)","Notre-Dame-de-Pontmain","WestRock (La Tuque)",54]
["Notre-Dame-de-Pontmain - Tafisa Canada (Lac-Mégantic)","Notre-Dame-de-Pontmain","Tafisa Canada (Lac-Mégantic)",54]
["Notre-Dame-de-Pontmain - Kruger (Trois-Rivières)","Notre-Dame-de-Pontmain","Kruger (Trois-Rivières)",46]
["Cour DJB Transport, Mansfield-et-Pontefract - Domtar (Windsor)","Cour DJB Transport, Mansfield-et-Pontefract","Domtar (Windsor)",53]
["Cour DJB Transport, Mansfield-et-Pontefract - Biomasse du lac Taureau (Saint-Michel-des-Saints)","Cour DJB Transport, Mansfield-et-Pontefract","Biomasse du lac Taureau (Saint-Michel-des-Saints)",51]
["Cour DJB Transport, Mansfield-et-Pontefract - Rayonier (Témiscaming)","Cour DJB Transport, Mansfield-et-Pontefract","Rayonier (Témiscaming)",32]
["Cour DJB Transport, Mansfield-et-Pontefract - Silicium Québec (Bécancour)","Cour DJB Transport, Mansfield-et-Pontefract","Silicium Québec (Bécancour)",49]
["Cour DJB Transport, Mansfield-et-Pontefract - WestRock (La Tuque)","Cour DJB Transport, Mansfield-et-Pontefract","WestRock (La Tuque)",54]
["Cour DJB Transport, Mansfield-et-Pontefract - Tafisa Canada (Lac-Mégantic)","Cour DJB Transport, Mansfield-et-Pontefract","Tafisa Canada (Lac-Mégantic)",54]
["Cour DJB Transport, Mansfield-et-Pontefract - Kruger (Trois-Rivières)","Cour DJB Transport, Mansfield-et-Pontefract","Kruger (Trois-Rivières)",48]
[]
["Zone de tarification et destination (RechercheV) - B Usine","Zone de tarification","Numéro usine","Destination","Aide finale ($/m3)"]
[{"$f":"CONCATENATE(B910,\" - \",D910)","v":"648 - Domtar (Windsor)"},648,"051-0-003","Domtar (Windsor)",35]
["649 - Domtar (Windsor)",649,"051-0-003","Domtar (Windsor)",26]
["656 - Domtar (Windsor)",656,"051-0-003","Domtar (Windsor)",42]
["657 - Domtar (Windsor)",657,"051-0-003","Domtar (Windsor)",36]
["658 - Domtar (Windsor)",658,"051-0-003","Domtar (Windsor)",43]
["659 - Domtar (Windsor)",659,"051-0-003","Domtar (Windsor)",49]
["660 - Domtar (Windsor)",660,"051-0-003","Domtar (Windsor)",48]
["661 - Domtar (Windsor)",661,"051-0-003","Domtar (Windsor)",37]
["662 - Domtar (Windsor)",662,"051-0-003","Domtar (Windsor)",40]
["750 - Domtar (Windsor)",750,"051-0-003","Domtar (Windsor)",32]
["751 - Domtar (Windsor)",751,"051-0-003","Domtar (Windsor)",47]
["752 - Domtar (Windsor)",752,"051-0-003","Domtar (Windsor)",54]
["753 - Domtar (Windsor)",753,"051-0-003","Domtar (Windsor)",54]
["754 - Domtar (Windsor)",754,"051-0-003","Domtar (Windsor)",54]
["755 - Domtar (Windsor)",755,"051-0-003","Domtar (Windsor)",46]
["756 - Domtar (Windsor)",756,"051-0-003","Domtar (Windsor)",54]
["757 - Domtar (Windsor)",757,"051-0-003","Domtar (Windsor)",54]
["758 - Domtar (Windsor)",758,"051-0-003","Domtar (Windsor)",54]
["648 - WestRock (La Tuque)",648,"042-0-001","WestRock (La Tuque)",34]
["649 - WestRock (La Tuque)",649,"042-0-001","WestRock (La Tuque)",35]
["656 - WestRock (La Tuque)",656,"042-0-001","WestRock (La Tuque)",17]
["657 - WestRock (La Tuque)",657,"042-0-001","WestRock (La Tuque)",20]
["658 - WestRock (La Tuque)",658,"042-0-001","WestRock (La Tuque)",23]
["659 - WestRock (La Tuque)",659,"042-0-001","WestRock (La Tuque)",27]
["660 - WestRock (La Tuque)",660,"042-0-001","WestRock (La Tuque)",43]
["661 - WestRock (La Tuque)",661,"042-0-001","WestRock (La Tuque)",40]
["662 - WestRock (La Tuque)",662,"042-0-001","WestRock (La Tuque)",45]
["750 - WestRock (La Tuque)",750,"042-0-001","WestRock (La Tuque)",40]
["751 - WestRock (La Tuque)",751,"042-0-001","WestRock (La Tuque)",54]
["752 - WestRock (La Tuque)",752,"042-0-001","WestRock (La Tuque)",54]
["753 - WestRock (La Tuque)",753,"042-0-001","WestRock (La Tuque)",54]
["754 - WestRock (La Tuque)",754,"042-0-001","WestRock (La Tuque)",54]
[{"$f":"CONCATENATE(B942,\" - \",D942)","v":"755 - WestRock (La Tuque)"},755,"042-0-001","WestRock (La Tuque)",54]
["756 - WestRock (La Tuque)",756,"042-0-001","WestRock (La Tuque)",54]
["757 - WestRock (La Tuque)",757,"042-0-001","WestRock (La Tuque)",50]
["758 - WestRock (La Tuque)",758,"042-0-001","WestRock (La Tuque)",43]
["648 - Silicium Québec (Bécancour)",648,"171-4-003","Silicium Québec (Bécancour)",21]
["649 - Silicium Québec (Bécancour)",649,"171-4-003","Silicium Québec (Bécancour)",18]
["656 - Silicium Québec (Bécancour)",656,"171-4-003","Silicium Québec (Bécancour)",25]
["657 - Silicium Québec (Bécancour)",657,"171-4-003","Silicium Québec (Bécancour)",28]
["658 - Silicium Québec (Bécancour)",658,"171-4-003","Silicium Québec (Bécancour)",34]
["659 - Silicium Québec (Bécancour)",659,"171-4-003","Silicium Québec (Bécancour)",41]
["660 - Silicium Québec (Bécancour)",660,"171-4-003","Silicium Québec (Bécancour)",39]
["661 - Silicium Québec (Bécancour)",661,"171-4-003","Silicium Québec (Bécancour)",35]
["662 - Silicium Québec (Bécancour)",662,"171-4-003","Silicium Québec (Bécancour)",35]
["750 - Silicium Québec (Bécancour)",750,"171-4-003","Silicium Québec (Bécancour)",30]
["751 - Silicium Québec (Bécancour)",751,"171-4-003","Silicium Québec (Bécancour)",45]
["752 - Silicium Québec (Bécancour)",752,"171-4-003","Silicium Québec (Bécancour)",54]
["753 - Silicium Québec (Bécancour)",753,"171-4-003","Silicium Québec (Bécancour)",54]
["754 - Silicium Québec (Bécancour)",754,"171-4-003","Silicium Québec (Bécancour)",48]
["755 - Silicium Québec (Bécancour)",755,"171-4-003","Silicium Québec (Bécancour)",39]
["756 - Silicium Québec (Bécancour)",756,"171-4-003","Silicium Québec (Bécancour)",53]
["757 - Silicium Québec (Bécancour)",757,"171-4-003","Silicium Québec (Bécancour)",50]
["758 - Silicium Québec (Bécancour)",758,"171-4-003","Silicium Québec (Bécancour)",54]
["648 - Biomasse du lac Taureau (Saint-Michel-des-Saints)",648,"142-4-004","Biomasse du lac Taureau (Saint-Michel-des-Saints)",0]
["649 - Biomasse du lac Taureau (Saint-Michel-des-Saints)",649,"142-4-004","Biomasse du lac Taureau (Saint-Michel-des-Saints)",14]
["656 - Biomasse du lac Taureau (Saint-Michel-des-Saints)",656,"142-4-004","Biomasse du lac Taureau (Saint-Michel-des-Saints)",0]
["657 - Biomasse du lac Taureau (Saint-Michel-des-Saints)",657,"142-4-004","Biomasse du lac Taureau (Saint-Michel-des-Saints)",2]
["658 - Biomasse du lac Taureau (Saint-Michel-des-Saints)",658,"142-4-004","Biomasse du lac Taureau (Saint-Michel-des-Saints)",8]
["659 - Biomasse du lac Taureau (Saint-Michel-des-Saints)",659,"142-4-004","Biomasse du lac Taureau (Saint-Michel-des-Saints)",16]
["660 - Biomasse du lac Taureau (Saint-Michel-des-Saints)",660,"142-4-004","Biomasse du lac Taureau (Saint-Michel-des-Saints)",18]
["661 - Biomasse du lac Taureau (Saint-Michel-des-Saints)",661,"142-4-004","Biomasse du lac Taureau (Saint-Michel-des-Saints)",14]
["662 - Biomasse du lac Taureau (Saint-Michel-des-Saints)",662,"142-4-004","Biomasse du lac Taureau (Saint-Michel-des-Saints)",25]
["750 - Biomasse du lac Taureau (Saint-Michel-des-Saints)",750,"142-4-004","Biomasse du lac Taureau (Saint-Michel-des-Saints)",21]
[{"$f":"CONCATENATE(B974,\" - \",D974)","v":"751 - Biomasse du lac Taureau (Saint-Michel-des-Saints)"},751,"142-4-004","Biomasse du lac Taureau (Saint-Michel-des-Saints)",41]
["752 - Biomasse du lac Taureau (Saint-Michel-des-Saints)",752,"142-4-004","Biomasse du lac Taureau (Saint-Michel-des-Saints)",54]
["753 - Biomasse du lac Taureau (Saint-Michel-des-Saints)",753,"142-4-004","Biomasse du lac Taureau (Saint-Michel-des-Saints)",49]
["754 - Biomasse du lac Taureau (Saint-Michel-des-Saints)",754,"142-4-004","Biomasse du lac Taureau (Saint-Michel-des-Saints)",39]
["755 - Biomasse du lac Taureau (Saint-Michel-des-Saints)",755,"142-4-004","Biomasse du lac Taureau (Saint-Michel-des-Saints)",37]
["756 - Biomasse du lac Taureau (Saint-Michel-des-Saints)",756,"142-4-004","Biomasse du lac Taureau (Saint-Michel-des-Saints)",43]
["757 - Biomasse du lac Taureau (Saint-Michel-des-Saints)",757,"142-4-004","Biomasse du lac Taureau (Saint-Michel-des-Saints)",40]
["758 - Biomasse du lac Taureau (Saint-Michel-des-Saints)",758,"142-4-004","Biomasse du lac Taureau (Saint-Michel-des-Saints)",41]
["648 - Rayonier (Témiscaming)",648,"081-0-001","Rayonier (Témiscaming)",54]
["649 - Rayonier (Témiscaming)",649,"081-0-001","Rayonier (Témiscaming)",54]
["656 - Rayonier (Témiscaming)",656,"081-0-001","Rayonier (Témiscaming)",54]
["657 - Rayonier (Témiscaming)",657,"081-0-001","Rayonier (Témiscaming)",54]
["658 - Rayonier (Témiscaming)",658,"081-0-001","Rayonier (Témiscaming)",54]
["659 - Rayonier (Témiscaming)",659,"081-0-001","Rayonier (Témiscaming)",54]
["660 - Rayonier (Témiscaming)",660,"081-0-001","Rayonier (Témiscaming)",54]
["661 - Rayonier (Témiscaming)",661,"081-0-001","Rayonier (Témiscaming)",54]
["662 - Rayonier (Témiscaming)",662,"081-0-001","Rayonier (Témiscaming)",48]
["750 - Rayonier (Témiscaming)",750,"081-0-001","Rayonier (Témiscaming)",44]
["751 - Rayonier (Témiscaming)",751,"081-0-001","Rayonier (Témiscaming)",29]
["752 - Rayonier (Témiscaming)",752,"081-0-001","Rayonier (Témiscaming)",15]
["753 - Rayonier (Témiscaming)",753,"081-0-001","Rayonier (Témiscaming)",21]
["754 - Rayonier (Témiscaming)",754,"081-0-001","Rayonier (Témiscaming)",32]
["755 - Rayonier (Témiscaming)",755,"081-0-001","Rayonier (Témiscaming)",41]
["756 - Rayonier (Témiscaming)",756,"081-0-001","Rayonier (Témiscaming)",23]
["757 - Rayonier (Témiscaming)",757,"081-0-001","Rayonier (Témiscaming)",54]
["758 - Rayonier (Témiscaming)",758,"081-0-001","Rayonier (Témiscaming)",54]
["648 - Tafisa Canada (Lac-Mégantic)",648,"073-0-001","Tafisa Canada (Lac-Mégantic)",43]
["649 - Tafisa Canada (Lac-Mégantic)",649,"073-0-001","Tafisa Canada (Lac-Mégantic)",32]
["656 - Tafisa Canada (Lac-Mégantic)",656,"073-0-001","Tafisa Canada (Lac-Mégantic)",49]
["657 - Tafisa Canada (Lac-Mégantic)",657,"073-0-001","Tafisa Canada (Lac-Mégantic)",53]
["658 - Tafisa Canada (Lac-Mégantic)",658,"073-0-001","Tafisa Canada (Lac-Mégantic)",53]
["659 - Tafisa Canada (Lac-Mégantic)",659,"073-0-001","Tafisa Canada (Lac-Mégantic)",54]
[{"$f":"CONCATENATE(B1006,\" - \",D1006)","v":"660 - Tafisa Canada (Lac-Mégantic)"},660,"073-0-001","Tafisa Canada (Lac-Mégantic)",54]
["661 - Tafisa Canada (Lac-Mégantic)",661,"073-0-001","Tafisa Canada (Lac-Mégantic)",48]
["662 - Tafisa Canada (Lac-Mégantic)",662,"073-0-001","Tafisa Canada (Lac-Mégantic)",51]
["750 - Tafisa Canada (Lac-Mégantic)",750,"073-0-001","Tafisa Canada (Lac-Mégantic)",44]
["751 - Tafisa Canada (Lac-Mégantic)",751,"073-0-001","Tafisa Canada (Lac-Mégantic)",54]
["752 - Tafisa Canada (Lac-Mégantic)",752,"073-0-001","Tafisa Canada (Lac-Mégantic)",54]
["753 - Tafisa Canada (Lac-Mégantic)",753,"073-0-001","Tafisa Canada (Lac-Mégantic)",54]
["754 - Tafisa Canada (Lac-Mégantic)",754,"073-0-001","Tafisa Canada (Lac-Mégantic)",54]
["755 - Tafisa Canada (Lac-Mégantic)",755,"073-0-001","Tafisa Canada (Lac-Mégantic)",54]
["756 - Tafisa Canada (Lac-Mégantic)",756,"073-0-001","Tafisa Canada (Lac-Mégantic)",54]
["757 - Tafisa Canada (Lac-Mégantic)",757,"073-0-001","Tafisa Canada (Lac-Mégantic)",54]
["758 - Tafisa Canada (Lac-Mégantic)",758,"073-0-001","Tafisa Canada (Lac-Mégantic)",54]
[]
["Villes"]
["Bois-Franc"]
["Ferme-Neuve"]
["Mont-Blanc"]
["Lachute"]
["Low"]
["Maniwaki"]
["Mansfield-et-Pontefract (Cour DJB Transport)"]
["Mont-Laurier"]
["Namur"]
["Notre-Dame-de-Pontmain"]
["Rapides-des-Joachims"]
["Thurso"]
[]
["Usine de destination - Fpu_A  : Section 4 BGAD et Section 1 Usine"]
["Biomasse du lac Taureau (Saint-Michel-des-Saints)"]
["Domtar (Windsor)"]
["Kruger (Trois-Rivières)"]
["Rayonier (Témiscaming)"]
["Silicium Québec (Bécancour)"]
["Tafisa Canada (Lac-Mégantic)"]
["WestRock (La Tuque)"]
[]
["Usine de destination - Fpu_B : Section 5 BGAD et Section 2 Usine"]
["Biomasse du lac Taureau (Saint-Michel-des-Saints)"]
["Domtar (Windsor)"]
["Rayonier (Témiscaming)"]
["Silicium Québec (Bécancour)"]
["Tafisa Canada (Lac-Mégantic)"]
["WestRock (La Tuque)"]
[]
["Usine de destination - FPr"]
["Biomasse du lac Taureau (Saint-Michel-des-Saints)"]
["Domtar (Windsor)"]
["Kruger Wayagamack S.E.C."]
["Louisiana-Pacific (Bois­Franc)"]
["Rayonier (Témiscaming)"]
["Silicium Québec (Bécancour)"]
["Société en commandite Papier Masson WB"]
["Tafisa Canada (Lac-Mégantic)"]
["WestRock (La Tuque)"]
["Domtar Maniwaki vers Domtar inc. (Windsor)"]
["Scierie Carrière vers Domtar (Windsor)"]
["Lauzon Thurso vers Uniboard Mont-Laurier (RTE 105)"]
["Lauzon vers Domtar (Windsor)"]
["Lauzon vers Rayonier (Témiscaming)"]
["Crête Ferme-Neuve vers Domtar (Windsor)"]
["Crête Mont-Blanc vers Domtar (Windsor)"]
["Crête Chertsey vers Domtar (Windsor)"]
["Forespect vers Domtar (Windsor)"]
["CCPL Mont-Laurier vers Domtar (Windsor)"]
["Cours de Shawville (Pontiac) vers Biomasse du lac Taureau (Saint-Michel-des-Saints)"]
["Cours de Shawville (Pontiac) vers Domtar (Windsor)"]
["Cours de Shawville (Pontiac) vers Rayonier (Témiscaming)"]
[]
["Territoire du plan conjoint des producteurs de bois"]
["Alliance des propriétaires forestiers Laurentides-Outaouais"]
["Office des producteurs de bois du Pontiac"]
["Office des producteurs de bois de la Gatineau"]
["Inscrire une valeur"]
[]
["Plan conjoint, destination et essence FPr (RechercheV)","Territoire du syndicat - origine","Destination","Type de bois transporté","Aide 2024-2025 ($/m3)"]
[{"$f":"CONCATENATE(B1081,\" - \",C1081,\" - \",D1081)","v":"Office des producteurs de bois du Pontiac - Louisiana-Pacific (Bois­Franc) - Peupliers"},"Office des producteurs de bois du Pontiac","Louisiana-Pacific (Bois­Franc)","Peupliers",6]
["Alliance des propriétaires forestiers Laurentides-Outaouais - Louisiana-Pacific (Bois­Franc) - Peupliers","Alliance des propriétaires forestiers Laurentides-Outaouais","Louisiana-Pacific (Bois­Franc)","Peupliers",17]
["Office des producteurs de bois du Pontiac - Silicium Québec (Bécancour) - Peupliers","Office des producteurs de bois du Pontiac","Silicium Québec (Bécancour)","Peupliers",34]
["Office des producteurs de bois du Pontiac - Biomasse du lac Taureau (Saint-Michel-des-Saints) - Peupliers","Office des producteurs de bois du Pontiac","Biomasse du lac Taureau (Saint-Michel-des-Saints)","Peupliers",36]
["Office des producteurs de bois du Pontiac - WestRock (La Tuque) - Peupliers","Office des producteurs de bois du Pontiac","WestRock (La Tuque)","Peupliers",46]
["Office des producteurs de bois du Pontiac - Tafisa Canada (Lac-Mégantic) - Peupliers","Office des producteurs de bois du Pontiac","Tafisa Canada (Lac-Mégantic)","Peupliers",45]
["Office des producteurs de bois du Pontiac - Domtar (Windsor) - Peupliers","Office des producteurs de bois du Pontiac","Domtar (Windsor)","Peupliers",39]
["Office des producteurs de bois du Pontiac - Rayonier (Témiscaming) - Peupliers","Office des producteurs de bois du Pontiac","Rayonier (Témiscaming)","Peupliers",38]
["Office des producteurs de bois du Pontiac - Société en commandite Papier Masson WB - Peupliers","Office des producteurs de bois du Pontiac","Société en commandite Papier Masson WB","Peupliers",0]
["Alliance des propriétaires forestiers Laurentides-Outaouais - Société en commandite Papier Masson WB - Peupliers","Alliance des propriétaires forestiers Laurentides-Outaouais","Société en commandite Papier Masson WB","Peupliers",1]
["Office des producteurs de bois de la Gatineau -  - Peupliers","Office des producteurs de bois de la Gatineau",null,"Peupliers"]
["Office des producteurs de bois du Pontiac - Cours de Shawville (Pontiac) vers Louisiana-Pacific (Bois­Franc) - Peupliers","Office des producteurs de bois du Pontiac","Cours de Shawville (Pontiac) vers Louisiana-Pacific (Bois­Franc)","Peupliers",18]
["Office des producteurs de bois du Pontiac - Cours de Shawville (Pontiac) vers Biomasse du lac Taureau (Saint-Michel-des-Saints) - Peupliers","Office des producteurs de bois du Pontiac","Cours de Shawville (Pontiac) vers Biomasse du lac Taureau (Saint-Michel-des-Saints)","Peupliers",45]
["Office des producteurs de bois du Pontiac - Cours de Shawville (Pontiac) vers Domtar (Windsor) - Peupliers","Office des producteurs de bois du Pontiac","Cours de Shawville (Pontiac) vers Domtar (Windsor)","Peupliers",46]
["Office des producteurs de bois du Pontiac - Cours de Shawville (Pontiac) vers Rayonier (Témiscaming) - Peupliers","Office des producteurs de bois du Pontiac","Cours de Shawville (Pontiac) vers Rayonier (Témiscaming)","Peupliers",40]
["Office des producteurs de bois de la Gatineau - Société en commandite Papier Masson WB - Peupliers","Office des producteurs de bois de la Gatineau","Société en commandite Papier Masson WB","Peupliers",10]
["Alliance des propriétaires forestiers Laurentides-Outaouais - Domtar (Windsor) - Peupliers","Alliance des propriétaires forestiers Laurentides-Outaouais","Domtar (Windsor)","Peupliers",30]
["Alliance des propriétaires forestiers Laurentides-Outaouais - Scierie Carrière vers Domtar (Windsor) - Peupliers","Alliance des propriétaires forestiers Laurentides-Outaouais","Scierie Carrière vers Domtar (Windsor)","Peupliers",27]
["Alliance des propriétaires forestiers Laurentides-Outaouais - Crête Ferme-Neuve vers Domtar (Windsor) - Peupliers","Alliance des propriétaires forestiers Laurentides-Outaouais","Crête Ferme-Neuve vers Domtar (Windsor)","Peupliers",53]
["Alliance des propriétaires forestiers Laurentides-Outaouais - Crête Mont-Blanc vers Domtar (Windsor) - Peupliers","Alliance des propriétaires forestiers Laurentides-Outaouais","Crête Mont-Blanc vers Domtar (Windsor)","Peupliers",31]
["Alliance des propriétaires forestiers Laurentides-Outaouais - Crête Chertsey vers Domtar (Windsor) - Peupliers","Alliance des propriétaires forestiers Laurentides-Outaouais","Crête Chertsey vers Domtar (Windsor)","Peupliers",33]
["Alliance des propriétaires forestiers Laurentides-Outaouais - Forespect vers Domtar (Windsor) - Peupliers","Alliance des propriétaires forestiers Laurentides-Outaouais","Forespect vers Domtar (Windsor)","Peupliers",38]
["Alliance des propriétaires forestiers Laurentides-Outaouais - CCPL Mont-Laurier vers Domtar (Windsor) - Peupliers","Alliance des propriétaires forestiers Laurentides-Outaouais","CCPL Mont-Laurier vers Domtar (Windsor)","Peupliers",49]
["Alliance des propriétaires forestiers Laurentides-Outaouais - Domtar Maniwaki vers Domtar inc. (Windsor - Pâtes et papiers) - Peupliers","Alliance des propriétaires forestiers Laurentides-Outaouais","Domtar Maniwaki vers Domtar inc. (Windsor - Pâtes et papiers)","Peupliers",54]
["Office des producteurs de bois du Pontiac - Cours de Shawville (Pontiac) vers Biomasse du lac Taureau (Saint-Michel-des-Saints) - Feuillus durs","Office des producteurs de bois du Pontiac","Cours de Shawville (Pontiac) vers Biomasse du lac Taureau (Saint-Michel-des-Saints)","Feuillus durs",48]
["Office des producteurs de bois du Pontiac - Cours de Shawville (Pontiac) vers Domtar (Windsor) - Feuillus durs","Office des producteurs de bois du Pontiac","Cours de Shawville (Pontiac) vers Domtar (Windsor)","Feuillus durs",49]
["Office des producteurs de bois du Pontiac - Cours de Shawville (Pontiac) vers Rayonier (Témiscaming) - Feuillus durs","Office des producteurs de bois du Pontiac","Cours de Shawville (Pontiac) vers Rayonier (Témiscaming)","Feuillus durs",37]
["Alliance des propriétaires forestiers Laurentides-Outaouais - Domtar (Windsor) - Feuillus durs","Alliance des propriétaires forestiers Laurentides-Outaouais","Domtar (Windsor)","Feuillus durs",32]
["Alliance des propriétaires forestiers Laurentides-Outaouais - Scierie Carrière vers Domtar (Windsor) - Feuillus durs","Alliance des propriétaires forestiers Laurentides-Outaouais","Scierie Carrière vers Domtar (Windsor)","Feuillus durs",35]
["Alliance des propriétaires forestiers Laurentides-Outaouais - Lauzon vers Domtar (Windsor) - Feuillus durs","Alliance des propriétaires forestiers Laurentides-Outaouais","Lauzon vers Domtar (Windsor)","Feuillus durs",43]
["Alliance des propriétaires forestiers Laurentides-Outaouais - Lauzon vers Rayonier (Témiscaming) - Feuillus durs","Alliance des propriétaires forestiers Laurentides-Outaouais","Lauzon vers Rayonier (Témiscaming)","Feuillus durs",54]
["Alliance des propriétaires forestiers Laurentides-Outaouais - Crête Ferme-Neuve vers Domtar (Windsor) - Feuillus durs","Alliance des propriétaires forestiers Laurentides-Outaouais","Crête Ferme-Neuve vers Domtar (Windsor)","Feuillus durs",44]
[{"$f":"CONCATENATE(B1113,\" - \",C1113,\" - \",D1113)","v":"Alliance des propriétaires forestiers Laurentides-Outaouais - Crête Mont-Blanc vers Domtar (Windsor) - Feuillus durs"},"Alliance des propriétaires forestiers Laurentides-Outaouais","Crête Mont-Blanc vers Domtar (Windsor)","Feuillus durs",34]
["Alliance des propriétaires forestiers Laurentides-Outaouais - Crête Chertsey vers Domtar (Windsor) - Feuillus durs","Alliance des propriétaires forestiers Laurentides-Outaouais","Crête Chertsey vers Domtar (Windsor)","Feuillus durs",38]
["Office des producteurs de bois de la Gatineau - Lauzon vers Domtar (Windsor) - Feuillus durs","Office des producteurs de bois de la Gatineau","Lauzon vers Domtar (Windsor)","Feuillus durs",48]
["Office des producteurs de bois de la Gatineau - Lauzon vers Rayonier (Témiscaming) - Feuillus durs","Office des producteurs de bois de la Gatineau","Lauzon vers Rayonier (Témiscaming)","Feuillus durs",54]
["Office des producteurs de bois de la Gatineau - CCPL Mont-Laurier vers Domtar (Windsor) - Feuillus durs","Office des producteurs de bois de la Gatineau","CCPL Mont-Laurier vers Domtar (Windsor)","Feuillus durs",44]
["Office des producteurs de bois de la Gatineau - Domtar Maniwaki vers Domtar inc. (Windsor) - Feuillus durs","Office des producteurs de bois de la Gatineau","Domtar Maniwaki vers Domtar inc. (Windsor)","Feuillus durs",45]
["Office des producteurs de bois du Pontiac - Lauzon vers Domtar (Windsor) - Feuillus durs","Office des producteurs de bois du Pontiac","Lauzon vers Domtar (Windsor)","Feuillus durs",47]
["Office des producteurs de bois du Pontiac - Lauzon vers Rayonier (Témiscaming) - Feuillus durs","Office des producteurs de bois du Pontiac","Lauzon vers Rayonier (Témiscaming)","Feuillus durs",54]
["Alliance des propriétaires forestiers Laurentides-Outaouais  - Louisiana-Pacific (Bois­Franc) - Feuillus durs","Alliance des propriétaires forestiers Laurentides-Outaouais ","Louisiana-Pacific (Bois­Franc)","Feuillus durs",15]
["Alliance des propriétaires forestiers Laurentides-Outaouais - Forespect vers Domtar (Windsor) - Feuillus durs","Alliance des propriétaires forestiers Laurentides-Outaouais","Forespect vers Domtar (Windsor)","Feuillus durs",35]
["Alliance des propriétaires forestiers Laurentides-Outaouais  - CCPL Mont-Laurier vers Domtar (Windsor) - Feuillus durs","Alliance des propriétaires forestiers Laurentides-Outaouais ","CCPL Mont-Laurier vers Domtar (Windsor)","Feuillus durs",36]
["Office des producteurs de bois de la Gatineau  - Lauzon Thurso vers Uniboard Mont-Laurier - Feuillus durs","Office des producteurs de bois de la Gatineau ","Lauzon Thurso vers Uniboard Mont-Laurier","Feuillus durs",35]
["Alliance des propriétaires forestiers Laurentides-Outaouais  - Lauzon Thurso vers Uniboard Mont-Laurier - Feuillus durs","Alliance des propriétaires forestiers Laurentides-Outaouais ","Lauzon Thurso vers Uniboard Mont-Laurier","Feuillus durs",20]
["Office des producteurs de bois du Pontiac  - Lauzon Thurso vers Uniboard Mont-Laurier - Feuillus durs","Office des producteurs de bois du Pontiac ","Lauzon Thurso vers Uniboard Mont-Laurier","Feuillus durs",33]
["Office des producteurs de bois de la Gatineau  - Lauzon Thurso vers Uniboard Mont-Laurier (RTE 105) - Feuillus durs","Office des producteurs de bois de la Gatineau ","Lauzon Thurso vers Uniboard Mont-Laurier (RTE 105)","Feuillus durs",41]
["Alliance des propriétaires forestiers Laurentides-Outaouais  - Lauzon Thurso vers Uniboard Mont-Laurier (RTE 105) - Feuillus durs","Alliance des propriétaires forestiers Laurentides-Outaouais ","Lauzon Thurso vers Uniboard Mont-Laurier (RTE 105)","Feuillus durs",31]
["Office des producteurs de bois du Pontiac  - Lauzon Thurso vers Uniboard Mont-Laurier (RTE 105) - Feuillus durs","Office des producteurs de bois du Pontiac ","Lauzon Thurso vers Uniboard Mont-Laurier (RTE 105)","Feuillus durs",40]
["Alliance des propriétaires forestiers Laurentides-Outaouais  - Domtar Maniwaki vers Domtar inc. (Windsor) - Feuillus durs","Alliance des propriétaires forestiers Laurentides-Outaouais ","Domtar Maniwaki vers Domtar inc. (Windsor)","Feuillus durs",54]
["Office des producteurs de bois de la Gatineau  - Domtar Maniwaki vers Domtar inc. (Windsor) - Feuillus durs","Office des producteurs de bois de la Gatineau ","Domtar Maniwaki vers Domtar inc. (Windsor)","Feuillus durs",45]
["Office des producteurs de bois de la Gatineau  - Domtar (Windsor) - Feuillus durs","Office des producteurs de bois de la Gatineau ","Domtar (Windsor)","Feuillus durs",41]
["Office des producteurs de bois du Pontiac  - Domtar (Windsor) - Feuillus durs","Office des producteurs de bois du Pontiac ","Domtar (Windsor)","Feuillus durs",45]
["Alliance des propriétaires forestiers Laurentides-Outaouais  - Rayonier (Témiscaming) - Feuillus durs","Alliance des propriétaires forestiers Laurentides-Outaouais ","Rayonier (Témiscaming)","Feuillus durs",52]
["Office des producteurs de bois de la Gatineau  - Rayonier (Témiscaming) - Feuillus durs","Office des producteurs de bois de la Gatineau ","Rayonier (Témiscaming)","Feuillus durs",39]
["Office des producteurs de bois du Pontiac  - Rayonier (Témiscaming) - Feuillus durs","Office des producteurs de bois du Pontiac ","Rayonier (Témiscaming)","Feuillus durs",24]
["Office des producteurs de bois du Pontiac  - Silicium Québec (Bécancour) - Feuillus durs","Office des producteurs de bois du Pontiac ","Silicium Québec (Bécancour)","Feuillus durs",41]
["Alliance des propriétaires forestiers Laurentides-Outaouais  - Silicium Québec (Bécancour) - Feuillus durs","Alliance des propriétaires forestiers Laurentides-Outaouais ","Silicium Québec (Bécancour)","Feuillus durs",27]
["Office des producteurs de bois du Pontiac  - Biomasse du lac Taureau (Saint-Michel-des-Saints) - Feuillus durs","Office des producteurs de bois du Pontiac ","Biomasse du lac Taureau (Saint-Michel-des-Saints)","Feuillus durs",42]
["Alliance des propriétaires forestiers Laurentides-Outaouais  - Biomasse du lac Taureau (Saint-Michel-des-Saints) - Feuillus durs","Alliance des propriétaires forestiers Laurentides-Outaouais ","Biomasse du lac Taureau (Saint-Michel-des-Saints)","Feuillus durs",19]
["Alliance des propriétaires forestiers Laurentides-Outaouais  - Kruger Wayagamack S.E.C. - Feuillus durs","Alliance des propriétaires forestiers Laurentides-Outaouais ","Kruger Wayagamack S.E.C.","Feuillus durs",27]
["Office des producteurs de bois du Pontiac  - WestRock (La Tuque) - Feuillus durs","Office des producteurs de bois du Pontiac ","WestRock (La Tuque)","Feuillus durs",54]
["Office des producteurs de bois du Pontiac  - Tafisa Canada (Lac-Mégantic) - Feuillus durs","Office des producteurs de bois du Pontiac ","Tafisa Canada (Lac-Mégantic)","Feuillus durs",54]
[]
["Type de bois de faible qualité"]
["Peupliers"]
["Feuillus durs"]
[]
["Volet II (Transport en longueur et mesurage optimisé)"]
["Bois transporté en longueur",64]
["Mesurage  optimisé",97]
[]
["Seuils Transport"]
["Minimum FD trituration",30]
[]
["Menu Retour en charge"]
["CONCANTER","Ville de destination","Usine d'origine","Taux final 2024-2025 pour retour en charge"]
[{"$f":"_xlfn.CONCAT($B1158,\" - \",$C1158)","v":"St-Faustin - Rayonier (Témiscaming)"},"St-Faustin","Rayonier (Témiscaming)"]
["Namur - Rayonier (Témiscaming)","Namur","Rayonier (Témiscaming)"]
["Mont-Laurier - Rayonier (Témiscaming)","Mont-Laurier","Rayonier (Témiscaming)"]
["Thurso - Rayonier (Témiscaming)","Thurso","Rayonier (Témiscaming)"]
["Bois-Franc - Rayonier (Témiscaming)","Bois-Franc","Rayonier (Témiscaming)"]
["Lachute - Rayonier (Témiscaming)","Lachute","Rayonier (Témiscaming)"]
["Sainte-Thérèse - Rayonier (Témiscaming)","Sainte-Thérèse","Rayonier (Témiscaming)"]
["Low - Rayonier (Témiscaming)","Low","Rayonier (Témiscaming)"]
["Rapides-Des-Joachims - Rayonier (Témiscaming)","Rapides-Des-Joachims","Rayonier (Témiscaming)"]
["Maniwaki - Rayonier (Témiscaming)","Maniwaki","Rayonier (Témiscaming)"]
["Notre-Dame-de-Pontmain - Rayonier (Témiscaming)","Notre-Dame-de-Pontmain","Rayonier (Témiscaming)"]
["Mansfield-et-Pontefract - Rayonier (Témiscaming)","Mansfield-et-Pontefract","Rayonier (Témiscaming)"]
["Sainte-Émile-de-l'Énergie - Rayonier (Témiscaming)","Sainte-Émile-de-l'Énergie","Rayonier (Témiscaming)"]

{"sheet":"Versions du fichier - PRBF","index":3,"n_rows":14,"n_cols":33,"rows_kept":14,"cut":false,"hidden":true,"merged":[[0,0,0,16],[0,19,0,24]]}
["Programme pour stimuler la récolte de la biomasse forestière primaire\nForêt publique\nSuivi des versions du fichier de l'annexe au rapport et au calcul pour l’exercice 2025-2026",null,null,null,null,null,null,null,null,null,null,null,null,null,null,null,null,null,null,"Version 1 : 2025-10-15",null,null,null,null,null,null,null,null,null,null,null,null,{"$f":"TODAY()","v":"2025-10-15"}]
[]
["Version 1 - PRBF","Nom du fichier :","Calcul_aide_PRBF_FPublique_2024-2025_2025-08-05.xlsm"]
[{"$f":"A3","v":"Version 1 - PRBF"},"Date de mise en ligne :","2025-07-06 ou dans les jours suivants."]
[{"$f":"A4","v":"Version 1 - PRBF"},"Remarques :","• Version initiale"]
[{"$f":"A5","v":"Version 1 - PRBF"}]
[]
[]
[]
[]
[]
[]
[]
[{"$f":"A13","v":0}]

{"sheet":"Log","index":4,"n_rows":40,"n_cols":4,"rows_kept":40,"cut":false,"hidden":true,"merged":[]}
["Utilisateur","Date","OS","Excel"]
["Pouliot, Simon (BMMB)","2022-04-27T12:18:14","Windows (64-bit) NT 10.00","16.0"]
["St-Pierre, Stéphane (BMMB)","2022-07-06T13:24:06","Windows (64-bit) NT 10.00","16.0"]
["St-Pierre, Stéphane (BMMB)","2022-07-06T14:32:07","Windows (64-bit) NT 10.00","16.0"]
["St-Pierre, Stéphane (BMMB)","2022-07-06T15:01:53","Windows (64-bit) NT 10.00","16.0"]
["St-Pierre, Stéphane (BMMB)","2022-10-04T14:11:42","Windows (64-bit) NT 10.00","16.0"]
["St-Pierre, Stéphane (BMMB)","2023-05-17T13:42:24","Windows (64-bit) NT 10.00","16.0"]
["Gagné, Jean-Benoit (BMMB)","2023-05-24T13:47:48","Windows (64-bit) NT 10.00","16.0"]
["Gagné, Jean-Benoit (BMMB)","2023-05-31T09:24:50","Windows (64-bit) NT 10.00","16.0"]
["Gagné, Jean-Benoit (BMMB)","2023-06-09T10:23:44","Windows (64-bit) NT 10.00","16.0"]
["Gagné, Jean-Benoit (BMMB)","2023-06-13T14:43:27","Windows (64-bit) NT 10.00","16.0"]
["Gagné, Jean-Benoit (BMMB)","2023-06-29T13:13:10","Windows (64-bit) NT 10.00","16.0"]
["Gagné, Jean-Benoit (BMMB)","2023-06-29T14:02:06","Windows (64-bit) NT 10.00","16.0"]
["Gagné, Jean-Benoit (BMMB)","2023-06-29T16:34:48","Windows (64-bit) NT 10.00","16.0"]
["Gagné, Jean-Benoit (BMMB)","2023-07-25T13:33:07","Windows (64-bit) NT 10.00","16.0"]
["Gagné, Jean-Benoit (BMMB)","2023-09-13T08:46:03","Windows (64-bit) NT 10.00","16.0"]
["Gagné, Jean-Benoit (BMMB)","2023-11-22T08:46:01","Windows (64-bit) NT 10.00","16.0"]
["Gagné, Jean-Benoit (BMMB)","2024-01-19T14:58:25","Windows (64-bit) NT 10.00","16.0"]
["Gagné, Jean-Benoit (BMMB)","2024-03-27T08:57:00","Windows (64-bit) NT 10.00","16.0"]
["Gagné, Jean-Benoit (BMMB)","2024-04-18T14:47:40","Windows (64-bit) NT 10.00","16.0"]
["Gagné, Jean-Benoit (BMMB)","2024-05-06T14:33:08","Windows (64-bit) NT 10.00","16.0"]
["Gagné, Jean-Benoit (BMMB)","2024-07-09T08:57:33","Windows (64-bit) NT 10.00","16.0"]
["Gagné, Jean-Benoit (BMMB)","2024-12-10T10:48:58","Windows (64-bit) NT 10.00","16.0"]
["St-Pierre, Stéphane (BMMB)","2025-03-19T07:44:28","Windows (64-bit) NT 10.00","16.0"]
["St-Pierre, Stéphane (BMMB)","2025-03-19T08:11:21","Windows (64-bit) NT 10.00","16.0"]
["St-Pierre, Stéphane (BMMB)","2025-03-19T08:20:21","Windows (64-bit) NT 10.00","16.0"]
["St-Pierre, Stéphane (BMMB)","2025-03-19T08:23:05","Windows (64-bit) NT 10.00","16.0"]
["Gagné, Jean-Benoit (BMMB)","2025-07-11T09:19:43","Windows (64-bit) NT 10.00","16.0"]
["Gagné, Jean-Benoit (BMMB)","2025-08-05T08:25:54","Windows (64-bit) NT 10.00","16.0"]
["Gagné, Jean-Benoit (BMMB)","2025-08-06T13:49:37","Windows (64-bit) NT 10.00","16.0"]
["Gagné, Jean-Benoit (BMMB)","2025-08-13T09:26:08","Windows (64-bit) NT 10.00","16.0"]
["Gagné, Jean-Benoit (BMMB)","2025-08-13T11:43:25","Windows (64-bit) NT 10.00","16.0"]
["Gagné, Jean-Benoit (BMMB)","2025-08-13T11:45:28","Windows (64-bit) NT 10.00","16.0"]
["Gagné, Jean-Benoit (BMMB)","2025-08-13T11:52:28","Windows (64-bit) NT 10.00","16.0"]
["Gagné, Jean-Benoit (BMMB)","2025-08-14T14:46:31","Windows (64-bit) NT 10.00","16.0"]
["Gagné, Jean-Benoit (BMMB)","2025-09-09T10:13:13","Windows (64-bit) NT 10.00","16.0"]
["Gagné, Jean-Benoit (BMMB)","2025-09-16T07:46:59","Windows (64-bit) NT 10.00","16.0"]
["Gagné, Jean-Benoit (BMMB)","2025-09-30T08:05:54","Windows (64-bit) NT 10.00","16.0"]
["Gagné, Jean-Benoit (BMMB)","2025-10-07T10:28:28","Windows (64-bit) NT 10.00","16.0"]
["Gagné, Jean-Benoit (BMMB)","2025-10-15T08:15:50","Windows (64-bit) NT 10.00","16.0"]